{"text_format":"1","workbook":"xlsx","n_sheets":4,"sheets":["公表名簿（管内）","公表名簿（県内建設)","公表名簿（県外建設)","等級(19-4月現在)"],"not_rendered":{"charts":0,"images":0,"macros":1,"external_links":0,"defined_names":4,"comments":0,"pivot_tables":0},"unopened":[],"bounds":{"document_bytes":16777216,"sheet_cells":100000,"rows_first":2000,"rows_last":500,"rows_between":2000,"halvings":0,"cell_chars":16384,"cell_head_chars":4096},"cells_cut":0,"cells_raw":0,"read":"whole","date_system":"1900"}

{"sheet":"公表名簿（管内）","index":0,"n_rows":12,"n_cols":38,"rows_kept":12,"cut":false,"hidden":false,"merged":[[0,6,0,11]]}
["八匝水道企業団建設工事等入札参加業者資格者名簿（管内）　",null,null,null,null,null,{"$f":"TODAY()","v":"2021-08-05"}]
["番号","区域","商号又は名称","所在地","代表者氏名","電話番号","ＦＡＸ","許可区分(土木)","土木一式","許可区分（建築）","建築一式","許可区分（電気）","電気","許可区分（管）","管","許可区分(ほ装)","ほ装","許可区分（塗装）","塗装","許可区分（防水）","防水","許可区分（機械器具）","機械器具設置","許可区分(電気)","電気通信","許可区分（水道施設）","水道施設","土木一式(等級)","建築一式(等級)","電気(等級)","管(等級)","ほ装(等級)","塗装(等級)","防水(等級)","機械器具設置(等級)","電気通信(等級)","水道施設(等級)","その他"]
[1,null,"赤浦建設㈱","匝瑳市八日市場イ263","小川　均","0479-72-0578","0479-73-7905","一般",810,null,null,null,null,null,null,"一般",701,null,null,null,null,null,null,null,null,null,null,{"$f":"IF(NOT(ISBLANK(テーブル6[[#This Row],[土木一式]])),VLOOKUP(テーブル6[[#This Row],[土木一式]],土木[],2,TRUE), IF(NOT(ISBLANK(テーブル6[[#This Row],[許可区分(土木)]])),\"D\",\"-\"))","v":"A"},{"$f":"IF(NOT(ISBLANK(テーブル6[[#This Row],[建築一式]])),VLOOKUP(テーブル6[[#This Row],[建築一式]],建築[],2,TRUE), IF(NOT(ISBLANK(テーブル6[[#This Row],[許可区分（建築）]])),\"D\",\"-\"))","v":"-"},{"$f":"IF(NOT(ISBLANK(テーブル6[[#This Row],[電気]])),VLOOKUP(テーブル6[[#This Row],[電気]],電気[],2,TRUE), IF(NOT(ISBLANK(テーブル6[[#This Row],[許可区分（電気）]])),\"D\",\"-\"))","v":"-"},{"$f":"IF(NOT(ISBLANK(テーブル6[[#This Row],[管]])),VLOOKUP(テーブル6[[#This Row],[管]],管[],2,TRUE), IF(NOT(ISBLANK(テーブル6[[#This Row],[許可区分（管）]])),\"D\",\"-\"))","v":"-"},{"$f":"IF(NOT(ISBLANK(テーブル6[[#This Row],[ほ装]])),VLOOKUP(テーブル6[[#This Row],[ほ装]],ほ装[],2,TRUE), IF(NOT(ISBLANK(テーブル6[[#This Row],[許可区分(ほ装)]])),\"D\",\"-\"))","v":"A"},{"$f":"IF(NOT(ISBLANK(テーブル6[[#This Row],[塗装]])),VLOOKUP(テーブル6[[#This Row],[塗装]],塗装[],2,TRUE), IF(NOT(ISBLANK(テーブル6[[#This Row],[許可区分（塗装）]])),\"D\",\"-\"))","v":"-"},{"$f":"IF(NOT(ISBLANK(テーブル6[[#This Row],[防水]])),VLOOKUP(テーブル6[[#This Row],[防水]],塗装[],2,TRUE), IF(NOT(ISBLANK(テーブル6[[#This Row],[許可区分（防水）]])),\"D\",\"-\"))","v":"-"},{"$f":"IF(NOT(ISBLANK(テーブル6[[#This Row],[機械器具設置]])),VLOOKUP(テーブル6[[#This Row],[機械器具設置]],塗装[],2,TRUE), IF(NOT(ISBLANK(テーブル6[[#This Row],[許可区分（機械器具）]])),\"D\",\"-\"))","v":"-"},{"$f":"IF(NOT(ISBLANK(テーブル6[[#This Row],[電気通信]])),VLOOKUP(テーブル6[[#This Row],[電気通信]],電気[],2,TRUE), IF(NOT(ISBLANK(テーブル6[[#This Row],[許可区分(電気)]])),\"D\",\"-\"))","v":"-"},{"$f":"IF(NOT(ISBLANK(テーブル6[[#This Row],[水道施設]])),VLOOKUP(テーブル6[[#This Row],[水道施設]],水道[],2,TRUE), IF(NOT(ISBLANK(テーブル6[[#This Row],[許可区分（水道施設）]])),\"D\",\"-\"))","v":"-"}]
[2,null,null,null,null,null,null,null,null,null,null,null,null,null,null,null,null,null,null,null,null,null,null,null,null,null,null,{"$f":"IF(NOT(ISBLANK(テーブル6[[#This Row],[土木一式]])),VLOOKUP(テーブル6[[#This Row],[土木一式]],土木[],2,TRUE), IF(NOT(ISBLANK(テーブル6[[#This Row],[許可区分(土木)]])),\"D\",\"-\"))","v":"-"},{"$f":"IF(NOT(ISBLANK(テーブル6[[#This Row],[建築一式]])),VLOOKUP(テーブル6[[#This Row],[建築一式]],建築[],2,TRUE), IF(NOT(ISBLANK(テーブル6[[#This Row],[許可区分（建築）]])),\"D\",\"-\"))","v":"-"},{"$f":"IF(NOT(ISBLANK(テーブル6[[#This Row],[電気]])),VLOOKUP(テーブル6[[#This Row],[電気]],電気[],2,TRUE), IF(NOT(ISBLANK(テーブル6[[#This Row],[許可区分（電気）]])),\"D\",\"-\"))","v":"-"},{"$f":"IF(NOT(ISBLANK(テーブル6[[#This Row],[管]])),VLOOKUP(テーブル6[[#This Row],[管]],管[],2,TRUE), IF(NOT(ISBLANK(テーブル6[[#This Row],[許可区分（管）]])),\"D\",\"-\"))","v":"-"},{"$f":"IF(NOT(ISBLANK(テーブル6[[#This Row],[ほ装]])),VLOOKUP(テーブル6[[#This Row],[ほ装]],ほ装[],2,TRUE), IF(NOT(ISBLANK(テーブル6[[#This Row],[許可区分(ほ装)]])),\"D\",\"-\"))","v":"-"},{"$f":"IF(NOT(ISBLANK(テーブル6[[#This Row],[塗装]])),VLOOKUP(テーブル6[[#This Row],[塗装]],塗装[],2,TRUE), IF(NOT(ISBLANK(テーブル6[[#This Row],[許可区分（塗装）]])),\"D\",\"-\"))","v":"-"},{"$f":"IF(NOT(ISBLANK(テーブル6[[#This Row],[防水]])),VLOOKUP(テーブル6[[#This Row],[防水]],塗装[],2,TRUE), IF(NOT(ISBLANK(テーブル6[[#This Row],[許可区分（防水）]])),\"D\",\"-\"))","v":"-"},{"$f":"IF(NOT(ISBLANK(テーブル6[[#This Row],[機械器具設置]])),VLOOKUP(テーブル6[[#This Row],[機械器具設置]],塗装[],2,TRUE), IF(NOT(ISBLANK(テーブル6[[#This Row],[許可区分（機械器具）]])),\"D\",\"-\"))","v":"-"},{"$f":"IF(NOT(ISBLANK(テーブル6[[#This Row],[電気通信]])),VLOOKUP(テーブル6[[#This Row],[電気通信]],電気[],2,TRUE), IF(NOT(ISBLANK(テーブル6[[#This Row],[許可区分(電気)]])),\"D\",\"-\"))","v":"-"},{"$f":"IF(NOT(ISBLANK(テーブル6[[#This Row],[水道施設]])),VLOOKUP(テーブル6[[#This Row],[水道施設]],水道[],2,TRUE), IF(NOT(ISBLANK(テーブル6[[#This Row],[許可区分（水道施設）]])),\"D\",\"-\"))","v":"-"}]
[3,null,null,null,null,null,null,null,null,null,null,null,null,null,null,null,null,null,null,null,null,null,null,null,null,null,null,{"$f":"IF(NOT(ISBLANK(テーブル6[[#This Row],[土木一式]])),VLOOKUP(テーブル6[[#This Row],[土木一式]],土木[],2,TRUE), IF(NOT(ISBLANK(テーブル6[[#This Row],[許可区分(土木)]])),\"D\",\"-\"))","v":"-"},{"$f":"IF(NOT(ISBLANK(テーブル6[[#This Row],[建築一式]])),VLOOKUP(テーブル6[[#This Row],[建築一式]],建築[],2,TRUE), IF(NOT(ISBLANK(テーブル6[[#This Row],[許可区分（建築）]])),\"D\",\"-\"))","v":"-"},{"$f":"IF(NOT(ISBLANK(テーブル6[[#This Row],[電気]])),VLOOKUP(テーブル6[[#This Row],[電気]],電気[],2,TRUE), IF(NOT(ISBLANK(テーブル6[[#This Row],[許可区分（電気）]])),\"D\",\"-\"))","v":"-"},{"$f":"IF(NOT(ISBLANK(テーブル6[[#This Row],[管]])),VLOOKUP(テーブル6[[#This Row],[管]],管[],2,TRUE), IF(NOT(ISBLANK(テーブル6[[#This Row],[許可区分（管）]])),\"D\",\"-\"))","v":"-"},{"$f":"IF(NOT(ISBLANK(テーブル6[[#This Row],[ほ装]])),VLOOKUP(テーブル6[[#This Row],[ほ装]],ほ装[],2,TRUE), IF(NOT(ISBLANK(テーブル6[[#This Row],[許可区分(ほ装)]])),\"D\",\"-\"))","v":"-"},{"$f":"IF(NOT(ISBLANK(テーブル6[[#This Row],[塗装]])),VLOOKUP(テーブル6[[#This Row],[塗装]],塗装[],2,TRUE), IF(NOT(ISBLANK(テーブル6[[#This Row],[許可区分（塗装）]])),\"D\",\"-\"))","v":"-"},{"$f":"IF(NOT(ISBLANK(テーブル6[[#This Row],[防水]])),VLOOKUP(テーブル6[[#This Row],[防水]],塗装[],2,TRUE), IF(NOT(ISBLANK(テーブル6[[#This Row],[許可区分（防水）]])),\"D\",\"-\"))","v":"-"},{"$f":"IF(NOT(ISBLANK(テーブル6[[#This Row],[機械器具設置]])),VLOOKUP(テーブル6[[#This Row],[機械器具設置]],塗装[],2,TRUE), IF(NOT(ISBLANK(テーブル6[[#This Row],[許可区分（機械器具）]])),\"D\",\"-\"))","v":"-"},{"$f":"IF(NOT(ISBLANK(テーブル6[[#This Row],[電気通信]])),VLOOKUP(テーブル6[[#This Row],[電気通信]],電気[],2,TRUE), IF(NOT(ISBLANK(テーブル6[[#This Row],[許可区分(電気)]])),\"D\",\"-\"))","v":"-"},{"$f":"IF(NOT(ISBLANK(テーブル6[[#This Row],[水道施設]])),VLOOKUP(テーブル6[[#This Row],[水道施設]],水道[],2,TRUE), IF(NOT(ISBLANK(テーブル6[[#This Row],[許可区分（水道施設）]])),\"D\",\"-\"))","v":"-"}]
[4,null,null,null,null,null,null,null,null,null,null,null,null,null,null,null,null,null,null,null,null,null,null,null,null,null,null,{"$f":"IF(NOT(ISBLANK(テーブル6[[#This Row],[土木一式]])),VLOOKUP(テーブル6[[#This Row],[土木一式]],土木[],2,TRUE), IF(NOT(ISBLANK(テーブル6[[#This Row],[許可区分(土木)]])),\"D\",\"-\"))","v":"-"},{"$f":"IF(NOT(ISBLANK(テーブル6[[#This Row],[建築一式]])),VLOOKUP(テーブル6[[#This Row],[建築一式]],建築[],2,TRUE), IF(NOT(ISBLANK(テーブル6[[#This Row],[許可区分（建築）]])),\"D\",\"-\"))","v":"-"},{"$f":"IF(NOT(ISBLANK(テーブル6[[#This Row],[電気]])),VLOOKUP(テーブル6[[#This Row],[電気]],電気[],2,TRUE), IF(NOT(ISBLANK(テーブル6[[#This Row],[許可区分（電気）]])),\"D\",\"-\"))","v":"-"},{"$f":"IF(NOT(ISBLANK(テーブル6[[#This Row],[管]])),VLOOKUP(テーブル6[[#This Row],[管]],管[],2,TRUE), IF(NOT(ISBLANK(テーブル6[[#This Row],[許可区分（管）]])),\"D\",\"-\"))","v":"-"},{"$f":"IF(NOT(ISBLANK(テーブル6[[#This Row],[ほ装]])),VLOOKUP(テーブル6[[#This Row],[ほ装]],ほ装[],2,TRUE), IF(NOT(ISBLANK(テーブル6[[#This Row],[許可区分(ほ装)]])),\"D\",\"-\"))","v":"-"},{"$f":"IF(NOT(ISBLANK(テーブル6[[#This Row],[塗装]])),VLOOKUP(テーブル6[[#This Row],[塗装]],塗装[],2,TRUE), IF(NOT(ISBLANK(テーブル6[[#This Row],[許可区分（塗装）]])),\"D\",\"-\"))","v":"-"},{"$f":"IF(NOT(ISBLANK(テーブル6[[#This Row],[防水]])),VLOOKUP(テーブル6[[#This Row],[防水]],塗装[],2,TRUE), IF(NOT(ISBLANK(テーブル6[[#This Row],[許可区分（防水）]])),\"D\",\"-\"))","v":"-"},{"$f":"IF(NOT(ISBLANK(テーブル6[[#This Row],[機械器具設置]])),VLOOKUP(テーブル6[[#This Row],[機械器具設置]],塗装[],2,TRUE), IF(NOT(ISBLANK(テーブル6[[#This Row],[許可区分（機械器具）]])),\"D\",\"-\"))","v":"-"},{"$f":"IF(NOT(ISBLANK(テーブル6[[#This Row],[電気通信]])),VLOOKUP(テーブル6[[#This Row],[電気通信]],電気[],2,TRUE), IF(NOT(ISBLANK(テーブル6[[#This Row],[許可区分(電気)]])),\"D\",\"-\"))","v":"-"},{"$f":"IF(NOT(ISBLANK(テーブル6[[#This Row],[水道施設]])),VLOOKUP(テーブル6[[#This Row],[水道施設]],水道[],2,TRUE), IF(NOT(ISBLANK(テーブル6[[#This Row],[許可区分（水道施設）]])),\"D\",\"-\"))","v":"-"}]
[5,null,null,null,null,null,null,null,null,null,null,null,null,null,null,null,null,null,null,null,null,null,null,null,null,null,null,{"$f":"IF(NOT(ISBLANK(テーブル6[[#This Row],[土木一式]])),VLOOKUP(テーブル6[[#This Row],[土木一式]],土木[],2,TRUE), IF(NOT(ISBLANK(テーブル6[[#This Row],[許可区分(土木)]])),\"D\",\"-\"))","v":"-"},{"$f":"IF(NOT(ISBLANK(テーブル6[[#This Row],[建築一式]])),VLOOKUP(テーブル6[[#This Row],[建築一式]],建築[],2,TRUE), IF(NOT(ISBLANK(テーブル6[[#This Row],[許可区分（建築）]])),\"D\",\"-\"))","v":"-"},{"$f":"IF(NOT(ISBLANK(テーブル6[[#This Row],[電気]])),VLOOKUP(テーブル6[[#This Row],[電気]],電気[],2,TRUE), IF(NOT(ISBLANK(テーブル6[[#This Row],[許可区分（電気）]])),\"D\",\"-\"))","v":"-"},{"$f":"IF(NOT(ISBLANK(テーブル6[[#This Row],[管]])),VLOOKUP(テーブル6[[#This Row],[管]],管[],2,TRUE), IF(NOT(ISBLANK(テーブル6[[#This Row],[許可区分（管）]])),\"D\",\"-\"))","v":"-"},{"$f":"IF(NOT(ISBLANK(テーブル6[[#This Row],[ほ装]])),VLOOKUP(テーブル6[[#This Row],[ほ装]],ほ装[],2,TRUE), IF(NOT(ISBLANK(テーブル6[[#This Row],[許可区分(ほ装)]])),\"D\",\"-\"))","v":"-"},{"$f":"IF(NOT(ISBLANK(テーブル6[[#This Row],[塗装]])),VLOOKUP(テーブル6[[#This Row],[塗装]],塗装[],2,TRUE), IF(NOT(ISBLANK(テーブル6[[#This Row],[許可区分（塗装）]])),\"D\",\"-\"))","v":"-"},{"$f":"IF(NOT(ISBLANK(テーブル6[[#This Row],[防水]])),VLOOKUP(テーブル6[[#This Row],[防水]],塗装[],2,TRUE), IF(NOT(ISBLANK(テーブル6[[#This Row],[許可区分（防水）]])),\"D\",\"-\"))","v":"-"},{"$f":"IF(NOT(ISBLANK(テーブル6[[#This Row],[機械器具設置]])),VLOOKUP(テーブル6[[#This Row],[機械器具設置]],塗装[],2,TRUE), IF(NOT(ISBLANK(テーブル6[[#This Row],[許可区分（機械器具）]])),\"D\",\"-\"))","v":"-"},{"$f":"IF(NOT(ISBLANK(テーブル6[[#This Row],[電気通信]])),VLOOKUP(テーブル6[[#This Row],[電気通信]],電気[],2,TRUE), IF(NOT(ISBLANK(テーブル6[[#This Row],[許可区分(電気)]])),\"D\",\"-\"))","v":"-"},{"$f":"IF(NOT(ISBLANK(テーブル6[[#This Row],[水道施設]])),VLOOKUP(テーブル6[[#This Row],[水道施設]],水道[],2,TRUE), IF(NOT(ISBLANK(テーブル6[[#This Row],[許可区分（水道施設）]])),\"D\",\"-\"))","v":"-"}]
[6,null,null,null,null,null,null,null,null,null,null,null,null,null,null,null,null,null,null,null,null,null,null,null,null,null,null,{"$f":"IF(NOT(ISBLANK(テーブル6[[#This Row],[土木一式]])),VLOOKUP(テーブル6[[#This Row],[土木一式]],土木[],2,TRUE), IF(NOT(ISBLANK(テーブル6[[#This Row],[許可区分(土木)]])),\"D\",\"-\"))","v":"-"},{"$f":"IF(NOT(ISBLANK(テーブル6[[#This Row],[建築一式]])),VLOOKUP(テーブル6[[#This Row],[建築一式]],建築[],2,TRUE), IF(NOT(ISBLANK(テーブル6[[#This Row],[許可区分（建築）]])),\"D\",\"-\"))","v":"-"},{"$f":"IF(NOT(ISBLANK(テーブル6[[#This Row],[電気]])),VLOOKUP(テーブル6[[#This Row],[電気]],電気[],2,TRUE), IF(NOT(ISBLANK(テーブル6[[#This Row],[許可区分（電気）]])),\"D\",\"-\"))","v":"-"},{"$f":"IF(NOT(ISBLANK(テーブル6[[#This Row],[管]])),VLOOKUP(テーブル6[[#This Row],[管]],管[],2,TRUE), IF(NOT(ISBLANK(テーブル6[[#This Row],[許可区分（管）]])),\"D\",\"-\"))","v":"-"},{"$f":"IF(NOT(ISBLANK(テーブル6[[#This Row],[ほ装]])),VLOOKUP(テーブル6[[#This Row],[ほ装]],ほ装[],2,TRUE), IF(NOT(ISBLANK(テーブル6[[#This Row],[許可区分(ほ装)]])),\"D\",\"-\"))","v":"-"},{"$f":"IF(NOT(ISBLANK(テーブル6[[#This Row],[塗装]])),VLOOKUP(テーブル6[[#This Row],[塗装]],塗装[],2,TRUE), IF(NOT(ISBLANK(テーブル6[[#This Row],[許可区分（塗装）]])),\"D\",\"-\"))","v":"-"},{"$f":"IF(NOT(ISBLANK(テーブル6[[#This Row],[防水]])),VLOOKUP(テーブル6[[#This Row],[防水]],塗装[],2,TRUE), IF(NOT(ISBLANK(テーブル6[[#This Row],[許可区分（防水）]])),\"D\",\"-\"))","v":"-"},{"$f":"IF(NOT(ISBLANK(テーブル6[[#This Row],[機械器具設置]])),VLOOKUP(テーブル6[[#This Row],[機械器具設置]],塗装[],2,TRUE), IF(NOT(ISBLANK(テーブル6[[#This Row],[許可区分（機械器具）]])),\"D\",\"-\"))","v":"-"},{"$f":"IF(NOT(ISBLANK(テーブル6[[#This Row],[電気通信]])),VLOOKUP(テーブル6[[#This Row],[電気通信]],電気[],2,TRUE), IF(NOT(ISBLANK(テーブル6[[#This Row],[許可区分(電気)]])),\"D\",\"-\"))","v":"-"},{"$f":"IF(NOT(ISBLANK(テーブル6[[#This Row],[水道施設]])),VLOOKUP(テーブル6[[#This Row],[水道施設]],水道[],2,TRUE), IF(NOT(ISBLANK(テーブル6[[#This Row],[許可区分（水道施設）]])),\"D\",\"-\"))","v":"-"}]
[7,null,null,null,null,null,null,null,null,null,null,null,null,null,null,null,null,null,null,null,null,null,null,null,null,null,null,{"$f":"IF(NOT(ISBLANK(テーブル6[[#This Row],[土木一式]])),VLOOKUP(テーブル6[[#This Row],[土木一式]],土木[],2,TRUE), IF(NOT(ISBLANK(テーブル6[[#This Row],[許可区分(土木)]])),\"D\",\"-\"))","v":"-"},{"$f":"IF(NOT(ISBLANK(テーブル6[[#This Row],[建築一式]])),VLOOKUP(テーブル6[[#This Row],[建築一式]],建築[],2,TRUE), IF(NOT(ISBLANK(テーブル6[[#This Row],[許可区分（建築）]])),\"D\",\"-\"))","v":"-"},{"$f":"IF(NOT(ISBLANK(テーブル6[[#This Row],[電気]])),VLOOKUP(テーブル6[[#This Row],[電気]],電気[],2,TRUE), IF(NOT(ISBLANK(テーブル6[[#This Row],[許可区分（電気）]])),\"D\",\"-\"))","v":"-"},{"$f":"IF(NOT(ISBLANK(テーブル6[[#This Row],[管]])),VLOOKUP(テーブル6[[#This Row],[管]],管[],2,TRUE), IF(NOT(ISBLANK(テーブル6[[#This Row],[許可区分（管）]])),\"D\",\"-\"))","v":"-"},{"$f":"IF(NOT(ISBLANK(テーブル6[[#This Row],[ほ装]])),VLOOKUP(テーブル6[[#This Row],[ほ装]],ほ装[],2,TRUE), IF(NOT(ISBLANK(テーブル6[[#This Row],[許可区分(ほ装)]])),\"D\",\"-\"))","v":"-"},{"$f":"IF(NOT(ISBLANK(テーブル6[[#This Row],[塗装]])),VLOOKUP(テーブル6[[#This Row],[塗装]],塗装[],2,TRUE), IF(NOT(ISBLANK(テーブル6[[#This Row],[許可区分（塗装）]])),\"D\",\"-\"))","v":"-"},{"$f":"IF(NOT(ISBLANK(テーブル6[[#This Row],[防水]])),VLOOKUP(テーブル6[[#This Row],[防水]],塗装[],2,TRUE), IF(NOT(ISBLANK(テーブル6[[#This Row],[許可区分（防水）]])),\"D\",\"-\"))","v":"-"},{"$f":"IF(NOT(ISBLANK(テーブル6[[#This Row],[機械器具設置]])),VLOOKUP(テーブル6[[#This Row],[機械器具設置]],塗装[],2,TRUE), IF(NOT(ISBLANK(テーブル6[[#This Row],[許可区分（機械器具）]])),\"D\",\"-\"))","v":"-"},{"$f":"IF(NOT(ISBLANK(テーブル6[[#This Row],[電気通信]])),VLOOKUP(テーブル6[[#This Row],[電気通信]],電気[],2,TRUE), IF(NOT(ISBLANK(テーブル6[[#This Row],[許可区分(電気)]])),\"D\",\"-\"))","v":"-"},{"$f":"IF(NOT(ISBLANK(テーブル6[[#This Row],[水道施設]])),VLOOKUP(テーブル6[[#This Row],[水道施設]],水道[],2,TRUE), IF(NOT(ISBLANK(テーブル6[[#This Row],[許可区分（水道施設）]])),\"D\",\"-\"))","v":"-"}]
[8,null,null,null,null,null,null,null,null,null,null,null,null,null,null,null,null,null,null,null,null,null,null,null,null,null,null,{"$f":"IF(NOT(ISBLANK(テーブル6[[#This Row],[土木一式]])),VLOOKUP(テーブル6[[#This Row],[土木一式]],土木[],2,TRUE), IF(NOT(ISBLANK(テーブル6[[#This Row],[許可区分(土木)]])),\"D\",\"-\"))","v":"-"},{"$f":"IF(NOT(ISBLANK(テーブル6[[#This Row],[建築一式]])),VLOOKUP(テーブル6[[#This Row],[建築一式]],建築[],2,TRUE), IF(NOT(ISBLANK(テーブル6[[#This Row],[許可区分（建築）]])),\"D\",\"-\"))","v":"-"},{"$f":"IF(NOT(ISBLANK(テーブル6[[#This Row],[電気]])),VLOOKUP(テーブル6[[#This Row],[電気]],電気[],2,TRUE), IF(NOT(ISBLANK(テーブル6[[#This Row],[許可区分（電気）]])),\"D\",\"-\"))","v":"-"},{"$f":"IF(NOT(ISBLANK(テーブル6[[#This Row],[管]])),VLOOKUP(テーブル6[[#This Row],[管]],管[],2,TRUE), IF(NOT(ISBLANK(テーブル6[[#This Row],[許可区分（管）]])),\"D\",\"-\"))","v":"-"},{"$f":"IF(NOT(ISBLANK(テーブル6[[#This Row],[ほ装]])),VLOOKUP(テーブル6[[#This Row],[ほ装]],ほ装[],2,TRUE), IF(NOT(ISBLANK(テーブル6[[#This Row],[許可区分(ほ装)]])),\"D\",\"-\"))","v":"-"},{"$f":"IF(NOT(ISBLANK(テーブル6[[#This Row],[塗装]])),VLOOKUP(テーブル6[[#This Row],[塗装]],塗装[],2,TRUE), IF(NOT(ISBLANK(テーブル6[[#This Row],[許可区分（塗装）]])),\"D\",\"-\"))","v":"-"},{"$f":"IF(NOT(ISBLANK(テーブル6[[#This Row],[防水]])),VLOOKUP(テーブル6[[#This Row],[防水]],塗装[],2,TRUE), IF(NOT(ISBLANK(テーブル6[[#This Row],[許可区分（防水）]])),\"D\",\"-\"))","v":"-"},{"$f":"IF(NOT(ISBLANK(テーブル6[[#This Row],[機械器具設置]])),VLOOKUP(テーブル6[[#This Row],[機械器具設置]],塗装[],2,TRUE), IF(NOT(ISBLANK(テーブル6[[#This Row],[許可区分（機械器具）]])),\"D\",\"-\"))","v":"-"},{"$f":"IF(NOT(ISBLANK(テーブル6[[#This Row],[電気通信]])),VLOOKUP(テーブル6[[#This Row],[電気通信]],電気[],2,TRUE), IF(NOT(ISBLANK(テーブル6[[#This Row],[許可区分(電気)]])),\"D\",\"-\"))","v":"-"},{"$f":"IF(NOT(ISBLANK(テーブル6[[#This Row],[水道施設]])),VLOOKUP(テーブル6[[#This Row],[水道施設]],水道[],2,TRUE), IF(NOT(ISBLANK(テーブル6[[#This Row],[許可区分（水道施設）]])),\"D\",\"-\"))","v":"-"}]
[9,null,null,null,null,null,null,null,null,null,null,null,null,null,null,null,null,null,null,null,null,null,null,null,null,null,null,{"$f":"IF(NOT(ISBLANK(テーブル6[[#This Row],[土木一式]])),VLOOKUP(テーブル6[[#This Row],[土木一式]],土木[],2,TRUE), IF(NOT(ISBLANK(テーブル6[[#This Row],[許可区分(土木)]])),\"D\",\"-\"))","v":"-"},{"$f":"IF(NOT(ISBLANK(テーブル6[[#This Row],[建築一式]])),VLOOKUP(テーブル6[[#This Row],[建築一式]],建築[],2,TRUE), IF(NOT(ISBLANK(テーブル6[[#This Row],[許可区分（建築）]])),\"D\",\"-\"))","v":"-"},{"$f":"IF(NOT(ISBLANK(テーブル6[[#This Row],[電気]])),VLOOKUP(テーブル6[[#This Row],[電気]],電気[],2,TRUE), IF(NOT(ISBLANK(テーブル6[[#This Row],[許可区分（電気）]])),\"D\",\"-\"))","v":"-"},{"$f":"IF(NOT(ISBLANK(テーブル6[[#This Row],[管]])),VLOOKUP(テーブル6[[#This Row],[管]],管[],2,TRUE), IF(NOT(ISBLANK(テーブル6[[#This Row],[許可区分（管）]])),\"D\",\"-\"))","v":"-"},{"$f":"IF(NOT(ISBLANK(テーブル6[[#This Row],[ほ装]])),VLOOKUP(テーブル6[[#This Row],[ほ装]],ほ装[],2,TRUE), IF(NOT(ISBLANK(テーブル6[[#This Row],[許可区分(ほ装)]])),\"D\",\"-\"))","v":"-"},{"$f":"IF(NOT(ISBLANK(テーブル6[[#This Row],[塗装]])),VLOOKUP(テーブル6[[#This Row],[塗装]],塗装[],2,TRUE), IF(NOT(ISBLANK(テーブル6[[#This Row],[許可区分（塗装）]])),\"D\",\"-\"))","v":"-"},{"$f":"IF(NOT(ISBLANK(テーブル6[[#This Row],[防水]])),VLOOKUP(テーブル6[[#This Row],[防水]],塗装[],2,TRUE), IF(NOT(ISBLANK(テーブル6[[#This Row],[許可区分（防水）]])),\"D\",\"-\"))","v":"-"},{"$f":"IF(NOT(ISBLANK(テーブル6[[#This Row],[機械器具設置]])),VLOOKUP(テーブル6[[#This Row],[機械器具設置]],塗装[],2,TRUE), IF(NOT(ISBLANK(テーブル6[[#This Row],[許可区分（機械器具）]])),\"D\",\"-\"))","v":"-"},{"$f":"IF(NOT(ISBLANK(テーブル6[[#This Row],[電気通信]])),VLOOKUP(テーブル6[[#This Row],[電気通信]],電気[],2,TRUE), IF(NOT(ISBLANK(テーブル6[[#This Row],[許可区分(電気)]])),\"D\",\"-\"))","v":"-"},{"$f":"IF(NOT(ISBLANK(テーブル6[[#This Row],[水道施設]])),VLOOKUP(テーブル6[[#This Row],[水道施設]],水道[],2,TRUE), IF(NOT(ISBLANK(テーブル6[[#This Row],[許可区分（水道施設）]])),\"D\",\"-\"))","v":"-"}]
[10,null,null,null,null,null,null,null,null,null,null,null,null,null,null,null,null,null,null,null,null,null,null,null,null,null,null,{"$f":"IF(NOT(ISBLANK(テーブル6[[#This Row],[土木一式]])),VLOOKUP(テーブル6[[#This Row],[土木一式]],土木[],2,TRUE), IF(NOT(ISBLANK(テーブル6[[#This Row],[許可区分(土木)]])),\"D\",\"-\"))","v":"-"},{"$f":"IF(NOT(ISBLANK(テーブル6[[#This Row],[建築一式]])),VLOOKUP(テーブル6[[#This Row],[建築一式]],建築[],2,TRUE), IF(NOT(ISBLANK(テーブル6[[#This Row],[許可区分（建築）]])),\"D\",\"-\"))","v":"-"},{"$f":"IF(NOT(ISBLANK(テーブル6[[#This Row],[電気]])),VLOOKUP(テーブル6[[#This Row],[電気]],電気[],2,TRUE), IF(NOT(ISBLANK(テーブル6[[#This Row],[許可区分（電気）]])),\"D\",\"-\"))","v":"-"},{"$f":"IF(NOT(ISBLANK(テーブル6[[#This Row],[管]])),VLOOKUP(テーブル6[[#This Row],[管]],管[],2,TRUE), IF(NOT(ISBLANK(テーブル6[[#This Row],[許可区分（管）]])),\"D\",\"-\"))","v":"-"},{"$f":"IF(NOT(ISBLANK(テーブル6[[#This Row],[ほ装]])),VLOOKUP(テーブル6[[#This Row],[ほ装]],ほ装[],2,TRUE), IF(NOT(ISBLANK(テーブル6[[#This Row],[許可区分(ほ装)]])),\"D\",\"-\"))","v":"-"},{"$f":"IF(NOT(ISBLANK(テーブル6[[#This Row],[塗装]])),VLOOKUP(テーブル6[[#This Row],[塗装]],塗装[],2,TRUE), IF(NOT(ISBLANK(テーブル6[[#This Row],[許可区分（塗装）]])),\"D\",\"-\"))","v":"-"},{"$f":"IF(NOT(ISBLANK(テーブル6[[#This Row],[防水]])),VLOOKUP(テーブル6[[#This Row],[防水]],塗装[],2,TRUE), IF(NOT(ISBLANK(テーブル6[[#This Row],[許可区分（防水）]])),\"D\",\"-\"))","v":"-"},{"$f":"IF(NOT(ISBLANK(テーブル6[[#This Row],[機械器具設置]])),VLOOKUP(テーブル6[[#This Row],[機械器具設置]],塗装[],2,TRUE), IF(NOT(ISBLANK(テーブル6[[#This Row],[許可区分（機械器具）]])),\"D\",\"-\"))","v":"-"},{"$f":"IF(NOT(ISBLANK(テーブル6[[#This Row],[電気通信]])),VLOOKUP(テーブル6[[#This Row],[電気通信]],電気[],2,TRUE), IF(NOT(ISBLANK(テーブル6[[#This Row],[許可区分(電気)]])),\"D\",\"-\"))","v":"-"},{"$f":"IF(NOT(ISBLANK(テーブル6[[#This Row],[水道施設]])),VLOOKUP(テーブル6[[#This Row],[水道施設]],水道[],2,TRUE), IF(NOT(ISBLANK(テーブル6[[#This Row],[許可区分（水道施設）]])),\"D\",\"-\"))","v":"-"}]

{"sheet":"公表名簿（県内建設)","index":1,"n_rows":14,"n_cols":37,"rows_kept":14,"cut":false,"hidden":false,"merged":[[0,6,0,11]]}
["八匝水道企業団建設工事等入札参加業者資格者名簿（県内建設）　",null,null,null,null,null,{"$f":"TODAY()","v":"2021-08-05"}]
["番号","区域","商号又は名称","所在地","代表者氏名","電話番号","ＦＡＸ","許可区分(土木)","土木一式","許可区分（建築）","建築一式","許可区分（電気）","電気","許可区分（管）","管","許可区分(ほ装)","ほ装","許可区分（塗装）","塗装","許可区分（防水）","防水","許可区分（機械器具）","機械器具設置","許可区分(電気)","電気通信","許可区分（水道施設）","水道施設","土木一式(等級)","建築一式(等級)","電気(等級)","管(等級)","ほ装(等級)","塗装(等級)","防水(等級)","機械器具設置(等級)","電気通信(等級)","水道施設(等級)"]
[1,"県内","㈲秋葉電機水道","山武郡横芝光町新島2910","秋葉　稔","0479-82-2484","0479-82-3889","一般",593,null,null,null,null,"一般",687,"一般",593,null,null,null,null,null,null,null,null,"一般",598,{"$f":"IF(NOT(ISBLANK(テーブル63[[#This Row],[土木一式]])),VLOOKUP(テーブル63[[#This Row],[土木一式]],土木[],2,TRUE), IF(NOT(ISBLANK(テーブル63[[#This Row],[許可区分(土木)]])),\"D\",\"-\"))","v":"C"},{"$f":"IF(NOT(ISBLANK(テーブル63[[#This Row],[建築一式]])),VLOOKUP(テーブル63[[#This Row],[建築一式]],建築[],2,TRUE), IF(NOT(ISBLANK(テーブル63[[#This Row],[許可区分（建築）]])),\"D\",\"-\"))","v":"-"},{"$f":"IF(NOT(ISBLANK(テーブル63[[#This Row],[電気]])),VLOOKUP(テーブル63[[#This Row],[電気]],電気[],2,TRUE), IF(NOT(ISBLANK(テーブル63[[#This Row],[許可区分（電気）]])),\"D\",\"-\"))","v":"-"},{"$f":"IF(NOT(ISBLANK(テーブル63[[#This Row],[管]])),VLOOKUP(テーブル63[[#This Row],[管]],管[],2,TRUE), IF(NOT(ISBLANK(テーブル63[[#This Row],[許可区分（管）]])),\"D\",\"-\"))","v":"B"},{"$f":"IF(NOT(ISBLANK(テーブル63[[#This Row],[ほ装]])),VLOOKUP(テーブル63[[#This Row],[ほ装]],ほ装[],2,TRUE), IF(NOT(ISBLANK(テーブル63[[#This Row],[許可区分(ほ装)]])),\"D\",\"-\"))","v":"C"},{"$f":"IF(NOT(ISBLANK(テーブル63[[#This Row],[塗装]])),VLOOKUP(テーブル63[[#This Row],[塗装]],塗装[],2,TRUE), IF(NOT(ISBLANK(テーブル63[[#This Row],[許可区分（塗装）]])),\"D\",\"-\"))","v":"-"},{"$f":"IF(NOT(ISBLANK(テーブル63[[#This Row],[防水]])),VLOOKUP(テーブル63[[#This Row],[防水]],塗装[],2,TRUE), IF(NOT(ISBLANK(テーブル63[[#This Row],[許可区分（防水）]])),\"D\",\"-\"))","v":"-"},{"$f":"IF(NOT(ISBLANK(テーブル63[[#This Row],[機械器具設置]])),VLOOKUP(テーブル63[[#This Row],[機械器具設置]],塗装[],2,TRUE), IF(NOT(ISBLANK(テーブル63[[#This Row],[許可区分（機械器具）]])),\"D\",\"-\"))","v":"-"},{"$f":"IF(NOT(ISBLANK(テーブル63[[#This Row],[電気通信]])),VLOOKUP(テーブル63[[#This Row],[電気通信]],電気[],2,TRUE), IF(NOT(ISBLANK(テーブル63[[#This Row],[許可区分(電気)]])),\"D\",\"-\"))","v":"-"},{"$f":"IF(NOT(ISBLANK(テーブル63[[#This Row],[水道施設]])),VLOOKUP(テーブル63[[#This Row],[水道施設]],水道[],2,TRUE), IF(NOT(ISBLANK(テーブル63[[#This Row],[許可区分（水道施設）]])),\"D\",\"-\"))","v":"D"}]
[2,"県内","京成建設㈱","船橋市宮本4-17-3","坂齊　和彦","047-435-6311","047-435-6316","特定",1367,"特定",1357,"特定",927,"特定",944,"特定",1089,null,null,"特定",904,null,null,null,null,null,null,{"$f":"IF(NOT(ISBLANK(テーブル63[[#This Row],[土木一式]])),VLOOKUP(テーブル63[[#This Row],[土木一式]],土木[],2,TRUE), IF(NOT(ISBLANK(テーブル63[[#This Row],[許可区分(土木)]])),\"D\",\"-\"))","v":"A"},{"$f":"IF(NOT(ISBLANK(テーブル63[[#This Row],[建築一式]])),VLOOKUP(テーブル63[[#This Row],[建築一式]],建築[],2,TRUE), IF(NOT(ISBLANK(テーブル63[[#This Row],[許可区分（建築）]])),\"D\",\"-\"))","v":"A"},{"$f":"IF(NOT(ISBLANK(テーブル63[[#This Row],[電気]])),VLOOKUP(テーブル63[[#This Row],[電気]],電気[],2,TRUE), IF(NOT(ISBLANK(テーブル63[[#This Row],[許可区分（電気）]])),\"D\",\"-\"))","v":"A"},{"$f":"IF(NOT(ISBLANK(テーブル63[[#This Row],[管]])),VLOOKUP(テーブル63[[#This Row],[管]],管[],2,TRUE), IF(NOT(ISBLANK(テーブル63[[#This Row],[許可区分（管）]])),\"D\",\"-\"))","v":"A"},{"$f":"IF(NOT(ISBLANK(テーブル63[[#This Row],[ほ装]])),VLOOKUP(テーブル63[[#This Row],[ほ装]],ほ装[],2,TRUE), IF(NOT(ISBLANK(テーブル63[[#This Row],[許可区分(ほ装)]])),\"D\",\"-\"))","v":"A"},{"$f":"IF(NOT(ISBLANK(テーブル63[[#This Row],[塗装]])),VLOOKUP(テーブル63[[#This Row],[塗装]],塗装[],2,TRUE), IF(NOT(ISBLANK(テーブル63[[#This Row],[許可区分（塗装）]])),\"D\",\"-\"))","v":"-"},{"$f":"IF(NOT(ISBLANK(テーブル63[[#This Row],[防水]])),VLOOKUP(テーブル63[[#This Row],[防水]],塗装[],2,TRUE), IF(NOT(ISBLANK(テーブル63[[#This Row],[許可区分（防水）]])),\"D\",\"-\"))","v":"A"},{"$f":"IF(NOT(ISBLANK(テーブル63[[#This Row],[機械器具設置]])),VLOOKUP(テーブル63[[#This Row],[機械器具設置]],塗装[],2,TRUE), IF(NOT(ISBLANK(テーブル63[[#This Row],[許可区分（機械器具）]])),\"D\",\"-\"))","v":"-"},{"$f":"IF(NOT(ISBLANK(テーブル63[[#This Row],[電気通信]])),VLOOKUP(テーブル63[[#This Row],[電気通信]],電気[],2,TRUE), IF(NOT(ISBLANK(テーブル63[[#This Row],[許可区分(電気)]])),\"D\",\"-\"))","v":"-"},{"$f":"IF(NOT(ISBLANK(テーブル63[[#This Row],[水道施設]])),VLOOKUP(テーブル63[[#This Row],[水道施設]],水道[],2,TRUE), IF(NOT(ISBLANK(テーブル63[[#This Row],[許可区分（水道施設）]])),\"D\",\"-\"))","v":"-"}]
[3,"県内","㈱内藤ハウス　千葉営業所","千葉市中央区長洲2-25-11","馬場　聖和","043-224-4451","043-224-4453","特定",1038,"特定",1481,null,null,null,null,null,null,null,null,null,null,null,null,null,null,null,null,{"$f":"IF(NOT(ISBLANK(テーブル63[[#This Row],[土木一式]])),VLOOKUP(テーブル63[[#This Row],[土木一式]],土木[],2,TRUE), IF(NOT(ISBLANK(テーブル63[[#This Row],[許可区分(土木)]])),\"D\",\"-\"))","v":"A"},{"$f":"IF(NOT(ISBLANK(テーブル63[[#This Row],[建築一式]])),VLOOKUP(テーブル63[[#This Row],[建築一式]],建築[],2,TRUE), IF(NOT(ISBLANK(テーブル63[[#This Row],[許可区分（建築）]])),\"D\",\"-\"))","v":"A"},{"$f":"IF(NOT(ISBLANK(テーブル63[[#This Row],[電気]])),VLOOKUP(テーブル63[[#This Row],[電気]],電気[],2,TRUE), IF(NOT(ISBLANK(テーブル63[[#This Row],[許可区分（電気）]])),\"D\",\"-\"))","v":"-"},{"$f":"IF(NOT(ISBLANK(テーブル63[[#This Row],[管]])),VLOOKUP(テーブル63[[#This Row],[管]],管[],2,TRUE), IF(NOT(ISBLANK(テーブル63[[#This Row],[許可区分（管）]])),\"D\",\"-\"))","v":"-"},{"$f":"IF(NOT(ISBLANK(テーブル63[[#This Row],[ほ装]])),VLOOKUP(テーブル63[[#This Row],[ほ装]],ほ装[],2,TRUE), IF(NOT(ISBLANK(テーブル63[[#This Row],[許可区分(ほ装)]])),\"D\",\"-\"))","v":"-"},{"$f":"IF(NOT(ISBLANK(テーブル63[[#This Row],[塗装]])),VLOOKUP(テーブル63[[#This Row],[塗装]],塗装[],2,TRUE), IF(NOT(ISBLANK(テーブル63[[#This Row],[許可区分（塗装）]])),\"D\",\"-\"))","v":"-"},{"$f":"IF(NOT(ISBLANK(テーブル63[[#This Row],[防水]])),VLOOKUP(テーブル63[[#This Row],[防水]],塗装[],2,TRUE), IF(NOT(ISBLANK(テーブル63[[#This Row],[許可区分（防水）]])),\"D\",\"-\"))","v":"-"},{"$f":"IF(NOT(ISBLANK(テーブル63[[#This Row],[機械器具設置]])),VLOOKUP(テーブル63[[#This Row],[機械器具設置]],塗装[],2,TRUE), IF(NOT(ISBLANK(テーブル63[[#This Row],[許可区分（機械器具）]])),\"D\",\"-\"))","v":"-"},{"$f":"IF(NOT(ISBLANK(テーブル63[[#This Row],[電気通信]])),VLOOKUP(テーブル63[[#This Row],[電気通信]],電気[],2,TRUE), IF(NOT(ISBLANK(テーブル63[[#This Row],[許可区分(電気)]])),\"D\",\"-\"))","v":"-"},{"$f":"IF(NOT(ISBLANK(テーブル63[[#This Row],[水道施設]])),VLOOKUP(テーブル63[[#This Row],[水道施設]],水道[],2,TRUE), IF(NOT(ISBLANK(テーブル63[[#This Row],[許可区分（水道施設）]])),\"D\",\"-\"))","v":"-"}]
[4,"県内","㈱ハマソウ","八街市吉倉433-13","濱崎　幸一","043-445-1718","043-445-1712",null,null,null,null,null,null,null,null,null,null,"一般",679,"一般",533,null,null,null,null,null,null,{"$f":"IF(NOT(ISBLANK(テーブル63[[#This Row],[土木一式]])),VLOOKUP(テーブル63[[#This Row],[土木一式]],土木[],2,TRUE), IF(NOT(ISBLANK(テーブル63[[#This Row],[許可区分(土木)]])),\"D\",\"-\"))","v":"-"},{"$f":"IF(NOT(ISBLANK(テーブル63[[#This Row],[建築一式]])),VLOOKUP(テーブル63[[#This Row],[建築一式]],建築[],2,TRUE), IF(NOT(ISBLANK(テーブル63[[#This Row],[許可区分（建築）]])),\"D\",\"-\"))","v":"-"},{"$f":"IF(NOT(ISBLANK(テーブル63[[#This Row],[電気]])),VLOOKUP(テーブル63[[#This Row],[電気]],電気[],2,TRUE), IF(NOT(ISBLANK(テーブル63[[#This Row],[許可区分（電気）]])),\"D\",\"-\"))","v":"-"},{"$f":"IF(NOT(ISBLANK(テーブル63[[#This Row],[管]])),VLOOKUP(テーブル63[[#This Row],[管]],管[],2,TRUE), IF(NOT(ISBLANK(テーブル63[[#This Row],[許可区分（管）]])),\"D\",\"-\"))","v":"-"},{"$f":"IF(NOT(ISBLANK(テーブル63[[#This Row],[ほ装]])),VLOOKUP(テーブル63[[#This Row],[ほ装]],ほ装[],2,TRUE), IF(NOT(ISBLANK(テーブル63[[#This Row],[許可区分(ほ装)]])),\"D\",\"-\"))","v":"-"},{"$f":"IF(NOT(ISBLANK(テーブル63[[#This Row],[塗装]])),VLOOKUP(テーブル63[[#This Row],[塗装]],塗装[],2,TRUE), IF(NOT(ISBLANK(テーブル63[[#This Row],[許可区分（塗装）]])),\"D\",\"-\"))","v":"C"},{"$f":"IF(NOT(ISBLANK(テーブル63[[#This Row],[防水]])),VLOOKUP(テーブル63[[#This Row],[防水]],塗装[],2,TRUE), IF(NOT(ISBLANK(テーブル63[[#This Row],[許可区分（防水）]])),\"D\",\"-\"))","v":"D"},{"$f":"IF(NOT(ISBLANK(テーブル63[[#This Row],[機械器具設置]])),VLOOKUP(テーブル63[[#This Row],[機械器具設置]],塗装[],2,TRUE), IF(NOT(ISBLANK(テーブル63[[#This Row],[許可区分（機械器具）]])),\"D\",\"-\"))","v":"-"},{"$f":"IF(NOT(ISBLANK(テーブル63[[#This Row],[電気通信]])),VLOOKUP(テーブル63[[#This Row],[電気通信]],電気[],2,TRUE), IF(NOT(ISBLANK(テーブル63[[#This Row],[許可区分(電気)]])),\"D\",\"-\"))","v":"-"},{"$f":"IF(NOT(ISBLANK(テーブル63[[#This Row],[水道施設]])),VLOOKUP(テーブル63[[#This Row],[水道施設]],水道[],2,TRUE), IF(NOT(ISBLANK(テーブル63[[#This Row],[許可区分（水道施設）]])),\"D\",\"-\"))","v":"-"}]
[5,"県内","東邦塗装工業㈱","千葉市中央区末広3-7-9","谷﨑　弥生","043-263-0033","043-263-0130",null,null,"一般",715,null,null,null,null,null,null,"特定",895,"一般",801,null,null,null,null,null,null,{"$f":"IF(NOT(ISBLANK(テーブル63[[#This Row],[土木一式]])),VLOOKUP(テーブル63[[#This Row],[土木一式]],土木[],2,TRUE), IF(NOT(ISBLANK(テーブル63[[#This Row],[許可区分(土木)]])),\"D\",\"-\"))","v":"-"},{"$f":"IF(NOT(ISBLANK(テーブル63[[#This Row],[建築一式]])),VLOOKUP(テーブル63[[#This Row],[建築一式]],建築[],2,TRUE), IF(NOT(ISBLANK(テーブル63[[#This Row],[許可区分（建築）]])),\"D\",\"-\"))","v":"B"},{"$f":"IF(NOT(ISBLANK(テーブル63[[#This Row],[電気]])),VLOOKUP(テーブル63[[#This Row],[電気]],電気[],2,TRUE), IF(NOT(ISBLANK(テーブル63[[#This Row],[許可区分（電気）]])),\"D\",\"-\"))","v":"-"},{"$f":"IF(NOT(ISBLANK(テーブル63[[#This Row],[管]])),VLOOKUP(テーブル63[[#This Row],[管]],管[],2,TRUE), IF(NOT(ISBLANK(テーブル63[[#This Row],[許可区分（管）]])),\"D\",\"-\"))","v":"-"},{"$f":"IF(NOT(ISBLANK(テーブル63[[#This Row],[ほ装]])),VLOOKUP(テーブル63[[#This Row],[ほ装]],ほ装[],2,TRUE), IF(NOT(ISBLANK(テーブル63[[#This Row],[許可区分(ほ装)]])),\"D\",\"-\"))","v":"-"},{"$f":"IF(NOT(ISBLANK(テーブル63[[#This Row],[塗装]])),VLOOKUP(テーブル63[[#This Row],[塗装]],塗装[],2,TRUE), IF(NOT(ISBLANK(テーブル63[[#This Row],[許可区分（塗装）]])),\"D\",\"-\"))","v":"A"},{"$f":"IF(NOT(ISBLANK(テーブル63[[#This Row],[防水]])),VLOOKUP(テーブル63[[#This Row],[防水]],塗装[],2,TRUE), IF(NOT(ISBLANK(テーブル63[[#This Row],[許可区分（防水）]])),\"D\",\"-\"))","v":"A"},{"$f":"IF(NOT(ISBLANK(テーブル63[[#This Row],[機械器具設置]])),VLOOKUP(テーブル63[[#This Row],[機械器具設置]],塗装[],2,TRUE), IF(NOT(ISBLANK(テーブル63[[#This Row],[許可区分（機械器具）]])),\"D\",\"-\"))","v":"-"},{"$f":"IF(NOT(ISBLANK(テーブル63[[#This Row],[電気通信]])),VLOOKUP(テーブル63[[#This Row],[電気通信]],電気[],2,TRUE), IF(NOT(ISBLANK(テーブル63[[#This Row],[許可区分(電気)]])),\"D\",\"-\"))","v":"-"},{"$f":"IF(NOT(ISBLANK(テーブル63[[#This Row],[水道施設]])),VLOOKUP(テーブル63[[#This Row],[水道施設]],水道[],2,TRUE), IF(NOT(ISBLANK(テーブル63[[#This Row],[許可区分（水道施設）]])),\"D\",\"-\"))","v":"-"}]
[6,"県内","㈱ナリコー","成田市三里塚光ケ丘1番地1331","加瀨　敏雄","0476-35-5321","0476-35-5360","特定",1121,"特定",1180,"特定",747,"特定",760,"特定",961,"特定",817,"特定",772,null,null,null,null,"特定",810,{"$f":"IF(NOT(ISBLANK(テーブル63[[#This Row],[土木一式]])),VLOOKUP(テーブル63[[#This Row],[土木一式]],土木[],2,TRUE), IF(NOT(ISBLANK(テーブル63[[#This Row],[許可区分(土木)]])),\"D\",\"-\"))","v":"A"},{"$f":"IF(NOT(ISBLANK(テーブル63[[#This Row],[建築一式]])),VLOOKUP(テーブル63[[#This Row],[建築一式]],建築[],2,TRUE), IF(NOT(ISBLANK(テーブル63[[#This Row],[許可区分（建築）]])),\"D\",\"-\"))","v":"A"},{"$f":"IF(NOT(ISBLANK(テーブル63[[#This Row],[電気]])),VLOOKUP(テーブル63[[#This Row],[電気]],電気[],2,TRUE), IF(NOT(ISBLANK(テーブル63[[#This Row],[許可区分（電気）]])),\"D\",\"-\"))","v":"B"},{"$f":"IF(NOT(ISBLANK(テーブル63[[#This Row],[管]])),VLOOKUP(テーブル63[[#This Row],[管]],管[],2,TRUE), IF(NOT(ISBLANK(テーブル63[[#This Row],[許可区分（管）]])),\"D\",\"-\"))","v":"A"},{"$f":"IF(NOT(ISBLANK(テーブル63[[#This Row],[ほ装]])),VLOOKUP(テーブル63[[#This Row],[ほ装]],ほ装[],2,TRUE), IF(NOT(ISBLANK(テーブル63[[#This Row],[許可区分(ほ装)]])),\"D\",\"-\"))","v":"A"},{"$f":"IF(NOT(ISBLANK(テーブル63[[#This Row],[塗装]])),VLOOKUP(テーブル63[[#This Row],[塗装]],塗装[],2,TRUE), IF(NOT(ISBLANK(テーブル63[[#This Row],[許可区分（塗装）]])),\"D\",\"-\"))","v":"A"},{"$f":"IF(NOT(ISBLANK(テーブル63[[#This Row],[防水]])),VLOOKUP(テーブル63[[#This Row],[防水]],塗装[],2,TRUE), IF(NOT(ISBLANK(テーブル63[[#This Row],[許可区分（防水）]])),\"D\",\"-\"))","v":"B"},{"$f":"IF(NOT(ISBLANK(テーブル63[[#This Row],[機械器具設置]])),VLOOKUP(テーブル63[[#This Row],[機械器具設置]],塗装[],2,TRUE), IF(NOT(ISBLANK(テーブル63[[#This Row],[許可区分（機械器具）]])),\"D\",\"-\"))","v":"-"},{"$f":"IF(NOT(ISBLANK(テーブル63[[#This Row],[電気通信]])),VLOOKUP(テーブル63[[#This Row],[電気通信]],電気[],2,TRUE), IF(NOT(ISBLANK(テーブル63[[#This Row],[許可区分(電気)]])),\"D\",\"-\"))","v":"-"},{"$f":"IF(NOT(ISBLANK(テーブル63[[#This Row],[水道施設]])),VLOOKUP(テーブル63[[#This Row],[水道施設]],水道[],2,TRUE), IF(NOT(ISBLANK(テーブル63[[#This Row],[許可区分（水道施設）]])),\"D\",\"-\"))","v":"A"}]
[7,"県内","㈱帝設備","千葉県市原市山田橋二丁目3番地18","齋藤　俊輔","0436-43-1252","0436-41-7292","特定",832,null,null,"一般",696,"特定",997,"特定",696,null,null,null,null,null,null,null,null,null,null,{"$f":"IF(NOT(ISBLANK(テーブル63[[#This Row],[土木一式]])),VLOOKUP(テーブル63[[#This Row],[土木一式]],土木[],2,TRUE), IF(NOT(ISBLANK(テーブル63[[#This Row],[許可区分(土木)]])),\"D\",\"-\"))","v":"A"},{"$f":"IF(NOT(ISBLANK(テーブル63[[#This Row],[建築一式]])),VLOOKUP(テーブル63[[#This Row],[建築一式]],建築[],2,TRUE), IF(NOT(ISBLANK(テーブル63[[#This Row],[許可区分（建築）]])),\"D\",\"-\"))","v":"-"},{"$f":"IF(NOT(ISBLANK(テーブル63[[#This Row],[電気]])),VLOOKUP(テーブル63[[#This Row],[電気]],電気[],2,TRUE), IF(NOT(ISBLANK(テーブル63[[#This Row],[許可区分（電気）]])),\"D\",\"-\"))","v":"C"},{"$f":"IF(NOT(ISBLANK(テーブル63[[#This Row],[管]])),VLOOKUP(テーブル63[[#This Row],[管]],管[],2,TRUE), IF(NOT(ISBLANK(テーブル63[[#This Row],[許可区分（管）]])),\"D\",\"-\"))","v":"A"},{"$f":"IF(NOT(ISBLANK(テーブル63[[#This Row],[ほ装]])),VLOOKUP(テーブル63[[#This Row],[ほ装]],ほ装[],2,TRUE), IF(NOT(ISBLANK(テーブル63[[#This Row],[許可区分(ほ装)]])),\"D\",\"-\"))","v":"B"},{"$f":"IF(NOT(ISBLANK(テーブル63[[#This Row],[塗装]])),VLOOKUP(テーブル63[[#This Row],[塗装]],塗装[],2,TRUE), IF(NOT(ISBLANK(テーブル63[[#This Row],[許可区分（塗装）]])),\"D\",\"-\"))","v":"-"},{"$f":"IF(NOT(ISBLANK(テーブル63[[#This Row],[防水]])),VLOOKUP(テーブル63[[#This Row],[防水]],塗装[],2,TRUE), IF(NOT(ISBLANK(テーブル63[[#This Row],[許可区分（防水）]])),\"D\",\"-\"))","v":"-"},{"$f":"IF(NOT(ISBLANK(テーブル63[[#This Row],[機械器具設置]])),VLOOKUP(テーブル63[[#This Row],[機械器具設置]],塗装[],2,TRUE), IF(NOT(ISBLANK(テーブル63[[#This Row],[許可区分（機械器具）]])),\"D\",\"-\"))","v":"-"},{"$f":"IF(NOT(ISBLANK(テーブル63[[#This Row],[電気通信]])),VLOOKUP(テーブル63[[#This Row],[電気通信]],電気[],2,TRUE), IF(NOT(ISBLANK(テーブル63[[#This Row],[許可区分(電気)]])),\"D\",\"-\"))","v":"-"},{"$f":"IF(NOT(ISBLANK(テーブル63[[#This Row],[水道施設]])),VLOOKUP(テーブル63[[#This Row],[水道施設]],水道[],2,TRUE), IF(NOT(ISBLANK(テーブル63[[#This Row],[許可区分（水道施設）]])),\"D\",\"-\"))","v":"-"}]
[8,"県内","㈱瀬谷塗装工業","千葉市緑区あすみが丘1丁目30番地1","瀬谷　英樹","043-294-0225","043-294-3012",null,null,null,null,null,null,null,null,null,null,"一般",778,"一般",698,null,null,null,null,null,null,{"$f":"IF(NOT(ISBLANK(テーブル63[[#This Row],[土木一式]])),VLOOKUP(テーブル63[[#This Row],[土木一式]],土木[],2,TRUE), IF(NOT(ISBLANK(テーブル63[[#This Row],[許可区分(土木)]])),\"D\",\"-\"))","v":"-"},{"$f":"IF(NOT(ISBLANK(テーブル63[[#This Row],[建築一式]])),VLOOKUP(テーブル63[[#This Row],[建築一式]],建築[],2,TRUE), IF(NOT(ISBLANK(テーブル63[[#This Row],[許可区分（建築）]])),\"D\",\"-\"))","v":"-"},{"$f":"IF(NOT(ISBLANK(テーブル63[[#This Row],[電気]])),VLOOKUP(テーブル63[[#This Row],[電気]],電気[],2,TRUE), IF(NOT(ISBLANK(テーブル63[[#This Row],[許可区分（電気）]])),\"D\",\"-\"))","v":"-"},{"$f":"IF(NOT(ISBLANK(テーブル63[[#This Row],[管]])),VLOOKUP(テーブル63[[#This Row],[管]],管[],2,TRUE), IF(NOT(ISBLANK(テーブル63[[#This Row],[許可区分（管）]])),\"D\",\"-\"))","v":"-"},{"$f":"IF(NOT(ISBLANK(テーブル63[[#This Row],[ほ装]])),VLOOKUP(テーブル63[[#This Row],[ほ装]],ほ装[],2,TRUE), IF(NOT(ISBLANK(テーブル63[[#This Row],[許可区分(ほ装)]])),\"D\",\"-\"))","v":"-"},{"$f":"IF(NOT(ISBLANK(テーブル63[[#This Row],[塗装]])),VLOOKUP(テーブル63[[#This Row],[塗装]],塗装[],2,TRUE), IF(NOT(ISBLANK(テーブル63[[#This Row],[許可区分（塗装）]])),\"D\",\"-\"))","v":"B"},{"$f":"IF(NOT(ISBLANK(テーブル63[[#This Row],[防水]])),VLOOKUP(テーブル63[[#This Row],[防水]],塗装[],2,TRUE), IF(NOT(ISBLANK(テーブル63[[#This Row],[許可区分（防水）]])),\"D\",\"-\"))","v":"C"},{"$f":"IF(NOT(ISBLANK(テーブル63[[#This Row],[機械器具設置]])),VLOOKUP(テーブル63[[#This Row],[機械器具設置]],塗装[],2,TRUE), IF(NOT(ISBLANK(テーブル63[[#This Row],[許可区分（機械器具）]])),\"D\",\"-\"))","v":"-"},{"$f":"IF(NOT(ISBLANK(テーブル63[[#This Row],[電気通信]])),VLOOKUP(テーブル63[[#This Row],[電気通信]],電気[],2,TRUE), IF(NOT(ISBLANK(テーブル63[[#This Row],[許可区分(電気)]])),\"D\",\"-\"))","v":"-"},{"$f":"IF(NOT(ISBLANK(テーブル63[[#This Row],[水道施設]])),VLOOKUP(テーブル63[[#This Row],[水道施設]],水道[],2,TRUE), IF(NOT(ISBLANK(テーブル63[[#This Row],[許可区分（水道施設）]])),\"D\",\"-\"))","v":"-"}]
[9,"県内","㈱千代田組","山武市沖渡682番地10","萩原　節","0475-77-8311","0475-77-8322","特定",762,null,null,null,null,null,null,"特定",702,null,null,null,null,null,null,null,null,"特定",591,{"$f":"IF(NOT(ISBLANK(テーブル63[[#This Row],[土木一式]])),VLOOKUP(テーブル63[[#This Row],[土木一式]],土木[],2,TRUE), IF(NOT(ISBLANK(テーブル63[[#This Row],[許可区分(土木)]])),\"D\",\"-\"))","v":"A"},{"$f":"IF(NOT(ISBLANK(テーブル63[[#This Row],[建築一式]])),VLOOKUP(テーブル63[[#This Row],[建築一式]],建築[],2,TRUE), IF(NOT(ISBLANK(テーブル63[[#This Row],[許可区分（建築）]])),\"D\",\"-\"))","v":"-"},{"$f":"IF(NOT(ISBLANK(テーブル63[[#This Row],[電気]])),VLOOKUP(テーブル63[[#This Row],[電気]],電気[],2,TRUE), IF(NOT(ISBLANK(テーブル63[[#This Row],[許可区分（電気）]])),\"D\",\"-\"))","v":"-"},{"$f":"IF(NOT(ISBLANK(テーブル63[[#This Row],[管]])),VLOOKUP(テーブル63[[#This Row],[管]],管[],2,TRUE), IF(NOT(ISBLANK(テーブル63[[#This Row],[許可区分（管）]])),\"D\",\"-\"))","v":"-"},{"$f":"IF(NOT(ISBLANK(テーブル63[[#This Row],[ほ装]])),VLOOKUP(テーブル63[[#This Row],[ほ装]],ほ装[],2,TRUE), IF(NOT(ISBLANK(テーブル63[[#This Row],[許可区分(ほ装)]])),\"D\",\"-\"))","v":"A"},{"$f":"IF(NOT(ISBLANK(テーブル63[[#This Row],[塗装]])),VLOOKUP(テーブル63[[#This Row],[塗装]],塗装[],2,TRUE), IF(NOT(ISBLANK(テーブル63[[#This Row],[許可区分（塗装）]])),\"D\",\"-\"))","v":"-"},{"$f":"IF(NOT(ISBLANK(テーブル63[[#This Row],[防水]])),VLOOKUP(テーブル63[[#This Row],[防水]],塗装[],2,TRUE), IF(NOT(ISBLANK(テーブル63[[#This Row],[許可区分（防水）]])),\"D\",\"-\"))","v":"-"},{"$f":"IF(NOT(ISBLANK(テーブル63[[#This Row],[機械器具設置]])),VLOOKUP(テーブル63[[#This Row],[機械器具設置]],塗装[],2,TRUE), IF(NOT(ISBLANK(テーブル63[[#This Row],[許可区分（機械器具）]])),\"D\",\"-\"))","v":"-"},{"$f":"IF(NOT(ISBLANK(テーブル63[[#This Row],[電気通信]])),VLOOKUP(テーブル63[[#This Row],[電気通信]],電気[],2,TRUE), IF(NOT(ISBLANK(テーブル63[[#This Row],[許可区分(電気)]])),\"D\",\"-\"))","v":"-"},{"$f":"IF(NOT(ISBLANK(テーブル63[[#This Row],[水道施設]])),VLOOKUP(テーブル63[[#This Row],[水道施設]],水道[],2,TRUE), IF(NOT(ISBLANK(テーブル63[[#This Row],[許可区分（水道施設）]])),\"D\",\"-\"))","v":"D"}]
[10,"県内","㈱冨士工　千葉支店","千葉市中央区新千葉2-1-8","古畑　元","043-243-3761","043-243-3765","特定",1278,"特定",1443,"特定",850,"特定",883,"特定",917,"特定",844,"特定",845,null,null,null,null,"特定",838,{"$f":"IF(NOT(ISBLANK(テーブル63[[#This Row],[土木一式]])),VLOOKUP(テーブル63[[#This Row],[土木一式]],土木[],2,TRUE), IF(NOT(ISBLANK(テーブル63[[#This Row],[許可区分(土木)]])),\"D\",\"-\"))","v":"A"},{"$f":"IF(NOT(ISBLANK(テーブル63[[#This Row],[建築一式]])),VLOOKUP(テーブル63[[#This Row],[建築一式]],建築[],2,TRUE), IF(NOT(ISBLANK(テーブル63[[#This Row],[許可区分（建築）]])),\"D\",\"-\"))","v":"A"},{"$f":"IF(NOT(ISBLANK(テーブル63[[#This Row],[電気]])),VLOOKUP(テーブル63[[#This Row],[電気]],電気[],2,TRUE), IF(NOT(ISBLANK(テーブル63[[#This Row],[許可区分（電気）]])),\"D\",\"-\"))","v":"A"},{"$f":"IF(NOT(ISBLANK(テーブル63[[#This Row],[管]])),VLOOKUP(テーブル63[[#This Row],[管]],管[],2,TRUE), IF(NOT(ISBLANK(テーブル63[[#This Row],[許可区分（管）]])),\"D\",\"-\"))","v":"A"},{"$f":"IF(NOT(ISBLANK(テーブル63[[#This Row],[ほ装]])),VLOOKUP(テーブル63[[#This Row],[ほ装]],ほ装[],2,TRUE), IF(NOT(ISBLANK(テーブル63[[#This Row],[許可区分(ほ装)]])),\"D\",\"-\"))","v":"A"},{"$f":"IF(NOT(ISBLANK(テーブル63[[#This Row],[塗装]])),VLOOKUP(テーブル63[[#This Row],[塗装]],塗装[],2,TRUE), IF(NOT(ISBLANK(テーブル63[[#This Row],[許可区分（塗装）]])),\"D\",\"-\"))","v":"A"},{"$f":"IF(NOT(ISBLANK(テーブル63[[#This Row],[防水]])),VLOOKUP(テーブル63[[#This Row],[防水]],塗装[],2,TRUE), IF(NOT(ISBLANK(テーブル63[[#This Row],[許可区分（防水）]])),\"D\",\"-\"))","v":"A"},{"$f":"IF(NOT(ISBLANK(テーブル63[[#This Row],[機械器具設置]])),VLOOKUP(テーブル63[[#This Row],[機械器具設置]],塗装[],2,TRUE), IF(NOT(ISBLANK(テーブル63[[#This Row],[許可区分（機械器具）]])),\"D\",\"-\"))","v":"-"},{"$f":"IF(NOT(ISBLANK(テーブル63[[#This Row],[電気通信]])),VLOOKUP(テーブル63[[#This Row],[電気通信]],電気[],2,TRUE), IF(NOT(ISBLANK(テーブル63[[#This Row],[許可区分(電気)]])),\"D\",\"-\"))","v":"-"},{"$f":"IF(NOT(ISBLANK(テーブル63[[#This Row],[水道施設]])),VLOOKUP(テーブル63[[#This Row],[水道施設]],水道[],2,TRUE), IF(NOT(ISBLANK(テーブル63[[#This Row],[許可区分（水道施設）]])),\"D\",\"-\"))","v":"A"}]
[11,"県内","坪井工業㈱　千葉支店","千葉市中央区登戸一丁目9番地1号","木下　雅夫","043-245-2700","043-245-4469","特定",1246,"特定",1401,"特定",1099,"特定",845,"特定",1013,"特定",1033,"特定",831,null,null,null,null,"特定",962,{"$f":"IF(NOT(ISBLANK(テーブル63[[#This Row],[土木一式]])),VLOOKUP(テーブル63[[#This Row],[土木一式]],土木[],2,TRUE), IF(NOT(ISBLANK(テーブル63[[#This Row],[許可区分(土木)]])),\"D\",\"-\"))","v":"A"},{"$f":"IF(NOT(ISBLANK(テーブル63[[#This Row],[建築一式]])),VLOOKUP(テーブル63[[#This Row],[建築一式]],建築[],2,TRUE), IF(NOT(ISBLANK(テーブル63[[#This Row],[許可区分（建築）]])),\"D\",\"-\"))","v":"A"},{"$f":"IF(NOT(ISBLANK(テーブル63[[#This Row],[電気]])),VLOOKUP(テーブル63[[#This Row],[電気]],電気[],2,TRUE), IF(NOT(ISBLANK(テーブル63[[#This Row],[許可区分（電気）]])),\"D\",\"-\"))","v":"A"},{"$f":"IF(NOT(ISBLANK(テーブル63[[#This Row],[管]])),VLOOKUP(テーブル63[[#This Row],[管]],管[],2,TRUE), IF(NOT(ISBLANK(テーブル63[[#This Row],[許可区分（管）]])),\"D\",\"-\"))","v":"A"},{"$f":"IF(NOT(ISBLANK(テーブル63[[#This Row],[ほ装]])),VLOOKUP(テーブル63[[#This Row],[ほ装]],ほ装[],2,TRUE), IF(NOT(ISBLANK(テーブル63[[#This Row],[許可区分(ほ装)]])),\"D\",\"-\"))","v":"A"},{"$f":"IF(NOT(ISBLANK(テーブル63[[#This Row],[塗装]])),VLOOKUP(テーブル63[[#This Row],[塗装]],塗装[],2,TRUE), IF(NOT(ISBLANK(テーブル63[[#This Row],[許可区分（塗装）]])),\"D\",\"-\"))","v":"A"},{"$f":"IF(NOT(ISBLANK(テーブル63[[#This Row],[防水]])),VLOOKUP(テーブル63[[#This Row],[防水]],塗装[],2,TRUE), IF(NOT(ISBLANK(テーブル63[[#This Row],[許可区分（防水）]])),\"D\",\"-\"))","v":"A"},{"$f":"IF(NOT(ISBLANK(テーブル63[[#This Row],[機械器具設置]])),VLOOKUP(テーブル63[[#This Row],[機械器具設置]],塗装[],2,TRUE), IF(NOT(ISBLANK(テーブル63[[#This Row],[許可区分（機械器具）]])),\"D\",\"-\"))","v":"-"},{"$f":"IF(NOT(ISBLANK(テーブル63[[#This Row],[電気通信]])),VLOOKUP(テーブル63[[#This Row],[電気通信]],電気[],2,TRUE), IF(NOT(ISBLANK(テーブル63[[#This Row],[許可区分(電気)]])),\"D\",\"-\"))","v":"-"},{"$f":"IF(NOT(ISBLANK(テーブル63[[#This Row],[水道施設]])),VLOOKUP(テーブル63[[#This Row],[水道施設]],水道[],2,TRUE), IF(NOT(ISBLANK(テーブル63[[#This Row],[許可区分（水道施設）]])),\"D\",\"-\"))","v":"A"}]
[12,"県内","布川産業㈱","船橋市南本町12-15","布川　義久","047-433-3191","047-434-3581","特定",838,"特定",799,"特定",867,"特定",928,"特定",768,"特定",840,null,null,"特定",1018,null,null,null,null,{"$f":"IF(NOT(ISBLANK(テーブル63[[#This Row],[土木一式]])),VLOOKUP(テーブル63[[#This Row],[土木一式]],土木[],2,TRUE), IF(NOT(ISBLANK(テーブル63[[#This Row],[許可区分(土木)]])),\"D\",\"-\"))","v":"A"},{"$f":"IF(NOT(ISBLANK(テーブル63[[#This Row],[建築一式]])),VLOOKUP(テーブル63[[#This Row],[建築一式]],建築[],2,TRUE), IF(NOT(ISBLANK(テーブル63[[#This Row],[許可区分（建築）]])),\"D\",\"-\"))","v":"B"},{"$f":"IF(NOT(ISBLANK(テーブル63[[#This Row],[電気]])),VLOOKUP(テーブル63[[#This Row],[電気]],電気[],2,TRUE), IF(NOT(ISBLANK(テーブル63[[#This Row],[許可区分（電気）]])),\"D\",\"-\"))","v":"A"},{"$f":"IF(NOT(ISBLANK(テーブル63[[#This Row],[管]])),VLOOKUP(テーブル63[[#This Row],[管]],管[],2,TRUE), IF(NOT(ISBLANK(テーブル63[[#This Row],[許可区分（管）]])),\"D\",\"-\"))","v":"A"},{"$f":"IF(NOT(ISBLANK(テーブル63[[#This Row],[ほ装]])),VLOOKUP(テーブル63[[#This Row],[ほ装]],ほ装[],2,TRUE), IF(NOT(ISBLANK(テーブル63[[#This Row],[許可区分(ほ装)]])),\"D\",\"-\"))","v":"A"},{"$f":"IF(NOT(ISBLANK(テーブル63[[#This Row],[塗装]])),VLOOKUP(テーブル63[[#This Row],[塗装]],塗装[],2,TRUE), IF(NOT(ISBLANK(テーブル63[[#This Row],[許可区分（塗装）]])),\"D\",\"-\"))","v":"A"},{"$f":"IF(NOT(ISBLANK(テーブル63[[#This Row],[防水]])),VLOOKUP(テーブル63[[#This Row],[防水]],塗装[],2,TRUE), IF(NOT(ISBLANK(テーブル63[[#This Row],[許可区分（防水）]])),\"D\",\"-\"))","v":"-"},{"$f":"IF(NOT(ISBLANK(テーブル63[[#This Row],[機械器具設置]])),VLOOKUP(テーブル63[[#This Row],[機械器具設置]],塗装[],2,TRUE), IF(NOT(ISBLANK(テーブル63[[#This Row],[許可区分（機械器具）]])),\"D\",\"-\"))","v":"A"},{"$f":"IF(NOT(ISBLANK(テーブル63[[#This Row],[電気通信]])),VLOOKUP(テーブル63[[#This Row],[電気通信]],電気[],2,TRUE), IF(NOT(ISBLANK(テーブル63[[#This Row],[許可区分(電気)]])),\"D\",\"-\"))","v":"-"},{"$f":"IF(NOT(ISBLANK(テーブル63[[#This Row],[水道施設]])),VLOOKUP(テーブル63[[#This Row],[水道施設]],水道[],2,TRUE), IF(NOT(ISBLANK(テーブル63[[#This Row],[許可区分（水道施設）]])),\"D\",\"-\"))","v":"-"}]

{"sheet":"公表名簿（県外建設)","index":2,"n_rows":12,"n_cols":37,"rows_kept":12,"cut":false,"hidden":false,"merged":[[0,6,0,11]]}
["八匝水道企業団建設工事等入札参加業者資格者名簿（県外建設）　",null,null,null,null,null,{"$f":"TODAY()","v":"2021-08-05"}]
["番号","区域","商号又は名称","所在地","代表者氏名","電話番号","ＦＡＸ","許可区分(土木)","土木一式","許可区分（建築）","建築一式","許可区分（電気）","電気","許可区分（管）","管","許可区分(ほ装)","ほ装","許可区分（塗装）","塗装","許可区分（防水）","防水","許可区分（機械器具）","機械器具設置","許可区分(電気)","電気通信","許可区分（水道施設）","水道施設","土木一式(等級)","建築一式(等級)","電気(等級)","管(等級)","ほ装(等級)","塗装(等級)","防水(等級)","機械器具設置(等級)","電気通信(等級)","水道施設(等級)"]
[1,"県外","㈱タケミ・コーポレーション","大阪府堺市西区山田二丁191-1","廣瀨　丈巳","072-294-9801","072-294-9802",null,null,null,null,null,null,null,null,null,null,null,null,null,null,null,null,null,null,"一般",692,{"$f":"IF(NOT(ISBLANK(テーブル635[[#This Row],[土木一式]])),VLOOKUP(テーブル635[[#This Row],[土木一式]],土木[],2,TRUE), IF(NOT(ISBLANK(テーブル635[[#This Row],[許可区分(土木)]])),\"D\",\"-\"))","v":"-"},{"$f":"IF(NOT(ISBLANK(テーブル635[[#This Row],[建築一式]])),VLOOKUP(テーブル635[[#This Row],[建築一式]],建築[],2,TRUE), IF(NOT(ISBLANK(テーブル635[[#This Row],[許可区分（建築）]])),\"D\",\"-\"))","v":"-"},{"$f":"IF(NOT(ISBLANK(テーブル635[[#This Row],[電気]])),VLOOKUP(テーブル635[[#This Row],[電気]],電気[],2,TRUE), IF(NOT(ISBLANK(テーブル635[[#This Row],[許可区分（電気）]])),\"D\",\"-\"))","v":"-"},{"$f":"IF(NOT(ISBLANK(テーブル635[[#This Row],[管]])),VLOOKUP(テーブル635[[#This Row],[管]],管[],2,TRUE), IF(NOT(ISBLANK(テーブル635[[#This Row],[許可区分（管）]])),\"D\",\"-\"))","v":"-"},{"$f":"IF(NOT(ISBLANK(テーブル635[[#This Row],[ほ装]])),VLOOKUP(テーブル635[[#This Row],[ほ装]],ほ装[],2,TRUE), IF(NOT(ISBLANK(テーブル635[[#This Row],[許可区分(ほ装)]])),\"D\",\"-\"))","v":"-"},{"$f":"IF(NOT(ISBLANK(テーブル635[[#This Row],[塗装]])),VLOOKUP(テーブル635[[#This Row],[塗装]],塗装[],2,TRUE), IF(NOT(ISBLANK(テーブル635[[#This Row],[許可区分（塗装）]])),\"D\",\"-\"))","v":"-"},{"$f":"IF(NOT(ISBLANK(テーブル635[[#This Row],[防水]])),VLOOKUP(テーブル635[[#This Row],[防水]],塗装[],2,TRUE), IF(NOT(ISBLANK(テーブル635[[#This Row],[許可区分（防水）]])),\"D\",\"-\"))","v":"-"},{"$f":"IF(NOT(ISBLANK(テーブル635[[#This Row],[機械器具設置]])),VLOOKUP(テーブル635[[#This Row],[機械器具設置]],塗装[],2,TRUE), IF(NOT(ISBLANK(テーブル635[[#This Row],[許可区分（機械器具）]])),\"D\",\"-\"))","v":"-"},{"$f":"IF(NOT(ISBLANK(テーブル635[[#This Row],[電気通信]])),VLOOKUP(テーブル635[[#This Row],[電気通信]],電気[],2,TRUE), IF(NOT(ISBLANK(テーブル635[[#This Row],[許可区分(電気)]])),\"D\",\"-\"))","v":"-"},{"$f":"IF(NOT(ISBLANK(テーブル635[[#This Row],[水道施設]])),VLOOKUP(テーブル635[[#This Row],[水道施設]],水道[],2,TRUE), IF(NOT(ISBLANK(テーブル635[[#This Row],[許可区分（水道施設）]])),\"D\",\"-\"))","v":"C"}]
[2,"県外","理水化学㈱　東京支店","東京都中央区新川1-22-4","福森　道明","03-5540-5731","03-5540-5739","特定",755,null,null,"特定",829,"特別",795,null,null,null,null,null,null,"特定",1116,null,null,"特定",1157,{"$f":"IF(NOT(ISBLANK(テーブル635[[#This Row],[土木一式]])),VLOOKUP(テーブル635[[#This Row],[土木一式]],土木[],2,TRUE), IF(NOT(ISBLANK(テーブル635[[#This Row],[許可区分(土木)]])),\"D\",\"-\"))","v":"A"},{"$f":"IF(NOT(ISBLANK(テーブル635[[#This Row],[建築一式]])),VLOOKUP(テーブル635[[#This Row],[建築一式]],建築[],2,TRUE), IF(NOT(ISBLANK(テーブル635[[#This Row],[許可区分（建築）]])),\"D\",\"-\"))","v":"-"},{"$f":"IF(NOT(ISBLANK(テーブル635[[#This Row],[電気]])),VLOOKUP(テーブル635[[#This Row],[電気]],電気[],2,TRUE), IF(NOT(ISBLANK(テーブル635[[#This Row],[許可区分（電気）]])),\"D\",\"-\"))","v":"A"},{"$f":"IF(NOT(ISBLANK(テーブル635[[#This Row],[管]])),VLOOKUP(テーブル635[[#This Row],[管]],管[],2,TRUE), IF(NOT(ISBLANK(テーブル635[[#This Row],[許可区分（管）]])),\"D\",\"-\"))","v":"A"},{"$f":"IF(NOT(ISBLANK(テーブル635[[#This Row],[ほ装]])),VLOOKUP(テーブル635[[#This Row],[ほ装]],ほ装[],2,TRUE), IF(NOT(ISBLANK(テーブル635[[#This Row],[許可区分(ほ装)]])),\"D\",\"-\"))","v":"-"},{"$f":"IF(NOT(ISBLANK(テーブル635[[#This Row],[塗装]])),VLOOKUP(テーブル635[[#This Row],[塗装]],塗装[],2,TRUE), IF(NOT(ISBLANK(テーブル635[[#This Row],[許可区分（塗装）]])),\"D\",\"-\"))","v":"-"},{"$f":"IF(NOT(ISBLANK(テーブル635[[#This Row],[防水]])),VLOOKUP(テーブル635[[#This Row],[防水]],塗装[],2,TRUE), IF(NOT(ISBLANK(テーブル635[[#This Row],[許可区分（防水）]])),\"D\",\"-\"))","v":"-"},{"$f":"IF(NOT(ISBLANK(テーブル635[[#This Row],[機械器具設置]])),VLOOKUP(テーブル635[[#This Row],[機械器具設置]],塗装[],2,TRUE), IF(NOT(ISBLANK(テーブル635[[#This Row],[許可区分（機械器具）]])),\"D\",\"-\"))","v":"A"},{"$f":"IF(NOT(ISBLANK(テーブル635[[#This Row],[電気通信]])),VLOOKUP(テーブル635[[#This Row],[電気通信]],電気[],2,TRUE), IF(NOT(ISBLANK(テーブル635[[#This Row],[許可区分(電気)]])),\"D\",\"-\"))","v":"-"},{"$f":"IF(NOT(ISBLANK(テーブル635[[#This Row],[水道施設]])),VLOOKUP(テーブル635[[#This Row],[水道施設]],水道[],2,TRUE), IF(NOT(ISBLANK(テーブル635[[#This Row],[許可区分（水道施設）]])),\"D\",\"-\"))","v":"A"}]
[3,"県外","協和機電工業㈱　東京支店","東京都台東区台東2-20-13","坂井　康俊","03-5846-1081","03-5846-1083","特定",728,null,null,"特定",1214,"特定",853,null,null,null,null,null,null,"特定",1115,"特定",981,"特定",1113,{"$f":"IF(NOT(ISBLANK(テーブル635[[#This Row],[土木一式]])),VLOOKUP(テーブル635[[#This Row],[土木一式]],土木[],2,TRUE), IF(NOT(ISBLANK(テーブル635[[#This Row],[許可区分(土木)]])),\"D\",\"-\"))","v":"B"},{"$f":"IF(NOT(ISBLANK(テーブル635[[#This Row],[建築一式]])),VLOOKUP(テーブル635[[#This Row],[建築一式]],建築[],2,TRUE), IF(NOT(ISBLANK(テーブル635[[#This Row],[許可区分（建築）]])),\"D\",\"-\"))","v":"-"},{"$f":"IF(NOT(ISBLANK(テーブル635[[#This Row],[電気]])),VLOOKUP(テーブル635[[#This Row],[電気]],電気[],2,TRUE), IF(NOT(ISBLANK(テーブル635[[#This Row],[許可区分（電気）]])),\"D\",\"-\"))","v":"A"},{"$f":"IF(NOT(ISBLANK(テーブル635[[#This Row],[管]])),VLOOKUP(テーブル635[[#This Row],[管]],管[],2,TRUE), IF(NOT(ISBLANK(テーブル635[[#This Row],[許可区分（管）]])),\"D\",\"-\"))","v":"A"},{"$f":"IF(NOT(ISBLANK(テーブル635[[#This Row],[ほ装]])),VLOOKUP(テーブル635[[#This Row],[ほ装]],ほ装[],2,TRUE), IF(NOT(ISBLANK(テーブル635[[#This Row],[許可区分(ほ装)]])),\"D\",\"-\"))","v":"-"},{"$f":"IF(NOT(ISBLANK(テーブル635[[#This Row],[塗装]])),VLOOKUP(テーブル635[[#This Row],[塗装]],塗装[],2,TRUE), IF(NOT(ISBLANK(テーブル635[[#This Row],[許可区分（塗装）]])),\"D\",\"-\"))","v":"-"},{"$f":"IF(NOT(ISBLANK(テーブル635[[#This Row],[防水]])),VLOOKUP(テーブル635[[#This Row],[防水]],塗装[],2,TRUE), IF(NOT(ISBLANK(テーブル635[[#This Row],[許可区分（防水）]])),\"D\",\"-\"))","v":"-"},{"$f":"IF(NOT(ISBLANK(テーブル635[[#This Row],[機械器具設置]])),VLOOKUP(テーブル635[[#This Row],[機械器具設置]],塗装[],2,TRUE), IF(NOT(ISBLANK(テーブル635[[#This Row],[許可区分（機械器具）]])),\"D\",\"-\"))","v":"A"},{"$f":"IF(NOT(ISBLANK(テーブル635[[#This Row],[電気通信]])),VLOOKUP(テーブル635[[#This Row],[電気通信]],電気[],2,TRUE), IF(NOT(ISBLANK(テーブル635[[#This Row],[許可区分(電気)]])),\"D\",\"-\"))","v":"A"},{"$f":"IF(NOT(ISBLANK(テーブル635[[#This Row],[水道施設]])),VLOOKUP(テーブル635[[#This Row],[水道施設]],水道[],2,TRUE), IF(NOT(ISBLANK(テーブル635[[#This Row],[許可区分（水道施設）]])),\"D\",\"-\"))","v":"A"}]
[4,"県外","清田軌道工業㈱　東京支店","東京都大田区南蒲田2丁目16-1テクノポートカマタ内","林　秀行","03-5713-7021","03-5713-7015","特定",1278,null,null,null,null,null,null,"特定",922,null,null,null,null,null,null,null,null,null,null,{"$f":"IF(NOT(ISBLANK(テーブル635[[#This Row],[土木一式]])),VLOOKUP(テーブル635[[#This Row],[土木一式]],土木[],2,TRUE), IF(NOT(ISBLANK(テーブル635[[#This Row],[許可区分(土木)]])),\"D\",\"-\"))","v":"A"},{"$f":"IF(NOT(ISBLANK(テーブル635[[#This Row],[建築一式]])),VLOOKUP(テーブル635[[#This Row],[建築一式]],建築[],2,TRUE), IF(NOT(ISBLANK(テーブル635[[#This Row],[許可区分（建築）]])),\"D\",\"-\"))","v":"-"},{"$f":"IF(NOT(ISBLANK(テーブル635[[#This Row],[電気]])),VLOOKUP(テーブル635[[#This Row],[電気]],電気[],2,TRUE), IF(NOT(ISBLANK(テーブル635[[#This Row],[許可区分（電気）]])),\"D\",\"-\"))","v":"-"},{"$f":"IF(NOT(ISBLANK(テーブル635[[#This Row],[管]])),VLOOKUP(テーブル635[[#This Row],[管]],管[],2,TRUE), IF(NOT(ISBLANK(テーブル635[[#This Row],[許可区分（管）]])),\"D\",\"-\"))","v":"-"},{"$f":"IF(NOT(ISBLANK(テーブル635[[#This Row],[ほ装]])),VLOOKUP(テーブル635[[#This Row],[ほ装]],ほ装[],2,TRUE), IF(NOT(ISBLANK(テーブル635[[#This Row],[許可区分(ほ装)]])),\"D\",\"-\"))","v":"A"},{"$f":"IF(NOT(ISBLANK(テーブル635[[#This Row],[塗装]])),VLOOKUP(テーブル635[[#This Row],[塗装]],塗装[],2,TRUE), IF(NOT(ISBLANK(テーブル635[[#This Row],[許可区分（塗装）]])),\"D\",\"-\"))","v":"-"},{"$f":"IF(NOT(ISBLANK(テーブル635[[#This Row],[防水]])),VLOOKUP(テーブル635[[#This Row],[防水]],塗装[],2,TRUE), IF(NOT(ISBLANK(テーブル635[[#This Row],[許可区分（防水）]])),\"D\",\"-\"))","v":"-"},{"$f":"IF(NOT(ISBLANK(テーブル635[[#This Row],[機械器具設置]])),VLOOKUP(テーブル635[[#This Row],[機械器具設置]],塗装[],2,TRUE), IF(NOT(ISBLANK(テーブル635[[#This Row],[許可区分（機械器具）]])),\"D\",\"-\"))","v":"-"},{"$f":"IF(NOT(ISBLANK(テーブル635[[#This Row],[電気通信]])),VLOOKUP(テーブル635[[#This Row],[電気通信]],電気[],2,TRUE), IF(NOT(ISBLANK(テーブル635[[#This Row],[許可区分(電気)]])),\"D\",\"-\"))","v":"-"},{"$f":"IF(NOT(ISBLANK(テーブル635[[#This Row],[水道施設]])),VLOOKUP(テーブル635[[#This Row],[水道施設]],水道[],2,TRUE), IF(NOT(ISBLANK(テーブル635[[#This Row],[許可区分（水道施設）]])),\"D\",\"-\"))","v":"-"}]
[5,"県外","㈱データベース　東京支店","東京都中央区日本橋本町2-8-12","清重　正樹","03-5641-1381","03-5641-1384","特定",734,"特定",719,"特定",957,"特定",734,"特定",719,"特定",719,null,null,"一般",787,null,null,"特定",822,{"$f":"IF(NOT(ISBLANK(テーブル635[[#This Row],[土木一式]])),VLOOKUP(テーブル635[[#This Row],[土木一式]],土木[],2,TRUE), IF(NOT(ISBLANK(テーブル635[[#This Row],[許可区分(土木)]])),\"D\",\"-\"))","v":"B"},{"$f":"IF(NOT(ISBLANK(テーブル635[[#This Row],[建築一式]])),VLOOKUP(テーブル635[[#This Row],[建築一式]],建築[],2,TRUE), IF(NOT(ISBLANK(テーブル635[[#This Row],[許可区分（建築）]])),\"D\",\"-\"))","v":"B"},{"$f":"IF(NOT(ISBLANK(テーブル635[[#This Row],[電気]])),VLOOKUP(テーブル635[[#This Row],[電気]],電気[],2,TRUE), IF(NOT(ISBLANK(テーブル635[[#This Row],[許可区分（電気）]])),\"D\",\"-\"))","v":"A"},{"$f":"IF(NOT(ISBLANK(テーブル635[[#This Row],[管]])),VLOOKUP(テーブル635[[#This Row],[管]],管[],2,TRUE), IF(NOT(ISBLANK(テーブル635[[#This Row],[許可区分（管）]])),\"D\",\"-\"))","v":"A"},{"$f":"IF(NOT(ISBLANK(テーブル635[[#This Row],[ほ装]])),VLOOKUP(テーブル635[[#This Row],[ほ装]],ほ装[],2,TRUE), IF(NOT(ISBLANK(テーブル635[[#This Row],[許可区分(ほ装)]])),\"D\",\"-\"))","v":"A"},{"$f":"IF(NOT(ISBLANK(テーブル635[[#This Row],[塗装]])),VLOOKUP(テーブル635[[#This Row],[塗装]],塗装[],2,TRUE), IF(NOT(ISBLANK(テーブル635[[#This Row],[許可区分（塗装）]])),\"D\",\"-\"))","v":"B"},{"$f":"IF(NOT(ISBLANK(テーブル635[[#This Row],[防水]])),VLOOKUP(テーブル635[[#This Row],[防水]],塗装[],2,TRUE), IF(NOT(ISBLANK(テーブル635[[#This Row],[許可区分（防水）]])),\"D\",\"-\"))","v":"-"},{"$f":"IF(NOT(ISBLANK(テーブル635[[#This Row],[機械器具設置]])),VLOOKUP(テーブル635[[#This Row],[機械器具設置]],塗装[],2,TRUE), IF(NOT(ISBLANK(テーブル635[[#This Row],[許可区分（機械器具）]])),\"D\",\"-\"))","v":"B"},{"$f":"IF(NOT(ISBLANK(テーブル635[[#This Row],[電気通信]])),VLOOKUP(テーブル635[[#This Row],[電気通信]],電気[],2,TRUE), IF(NOT(ISBLANK(テーブル635[[#This Row],[許可区分(電気)]])),\"D\",\"-\"))","v":"-"},{"$f":"IF(NOT(ISBLANK(テーブル635[[#This Row],[水道施設]])),VLOOKUP(テーブル635[[#This Row],[水道施設]],水道[],2,TRUE), IF(NOT(ISBLANK(テーブル635[[#This Row],[許可区分（水道施設）]])),\"D\",\"-\"))","v":"A"}]
[6,null,null,null,null,null,null,null,null,null,null,null,null,null,null,null,null,null,null,null,null,null,null,null,null,null,null,{"$f":"IF(NOT(ISBLANK(テーブル635[[#This Row],[土木一式]])),VLOOKUP(テーブル635[[#This Row],[土木一式]],土木[],2,TRUE), IF(NOT(ISBLANK(テーブル635[[#This Row],[許可区分(土木)]])),\"D\",\"-\"))","v":"-"},{"$f":"IF(NOT(ISBLANK(テーブル635[[#This Row],[建築一式]])),VLOOKUP(テーブル635[[#This Row],[建築一式]],建築[],2,TRUE), IF(NOT(ISBLANK(テーブル635[[#This Row],[許可区分（建築）]])),\"D\",\"-\"))","v":"-"},{"$f":"IF(NOT(ISBLANK(テーブル635[[#This Row],[電気]])),VLOOKUP(テーブル635[[#This Row],[電気]],電気[],2,TRUE), IF(NOT(ISBLANK(テーブル635[[#This Row],[許可区分（電気）]])),\"D\",\"-\"))","v":"-"},{"$f":"IF(NOT(ISBLANK(テーブル635[[#This Row],[管]])),VLOOKUP(テーブル635[[#This Row],[管]],管[],2,TRUE), IF(NOT(ISBLANK(テーブル635[[#This Row],[許可区分（管）]])),\"D\",\"-\"))","v":"-"},{"$f":"IF(NOT(ISBLANK(テーブル635[[#This Row],[ほ装]])),VLOOKUP(テーブル635[[#This Row],[ほ装]],ほ装[],2,TRUE), IF(NOT(ISBLANK(テーブル635[[#This Row],[許可区分(ほ装)]])),\"D\",\"-\"))","v":"-"},{"$f":"IF(NOT(ISBLANK(テーブル635[[#This Row],[塗装]])),VLOOKUP(テーブル635[[#This Row],[塗装]],塗装[],2,TRUE), IF(NOT(ISBLANK(テーブル635[[#This Row],[許可区分（塗装）]])),\"D\",\"-\"))","v":"-"},{"$f":"IF(NOT(ISBLANK(テーブル635[[#This Row],[防水]])),VLOOKUP(テーブル635[[#This Row],[防水]],塗装[],2,TRUE), IF(NOT(ISBLANK(テーブル635[[#This Row],[許可区分（防水）]])),\"D\",\"-\"))","v":"-"},{"$f":"IF(NOT(ISBLANK(テーブル635[[#This Row],[機械器具設置]])),VLOOKUP(テーブル635[[#This Row],[機械器具設置]],塗装[],2,TRUE), IF(NOT(ISBLANK(テーブル635[[#This Row],[許可区分（機械器具）]])),\"D\",\"-\"))","v":"-"},{"$f":"IF(NOT(ISBLANK(テーブル635[[#This Row],[電気通信]])),VLOOKUP(テーブル635[[#This Row],[電気通信]],電気[],2,TRUE), IF(NOT(ISBLANK(テーブル635[[#This Row],[許可区分(電気)]])),\"D\",\"-\"))","v":"-"},{"$f":"IF(NOT(ISBLANK(テーブル635[[#This Row],[水道施設]])),VLOOKUP(テーブル635[[#This Row],[水道施設]],水道[],2,TRUE), IF(NOT(ISBLANK(テーブル635[[#This Row],[許可区分（水道施設）]])),\"D\",\"-\"))","v":"-"}]
[7,null,null,null,null,null,null,null,null,null,null,null,null,null,null,null,null,null,null,null,null,null,null,null,null,null,null,{"$f":"IF(NOT(ISBLANK(テーブル635[[#This Row],[土木一式]])),VLOOKUP(テーブル635[[#This Row],[土木一式]],土木[],2,TRUE), IF(NOT(ISBLANK(テーブル635[[#This Row],[許可区分(土木)]])),\"D\",\"-\"))","v":"-"},{"$f":"IF(NOT(ISBLANK(テーブル635[[#This Row],[建築一式]])),VLOOKUP(テーブル635[[#This Row],[建築一式]],建築[],2,TRUE), IF(NOT(ISBLANK(テーブル635[[#This Row],[許可区分（建築）]])),\"D\",\"-\"))","v":"-"},{"$f":"IF(NOT(ISBLANK(テーブル635[[#This Row],[電気]])),VLOOKUP(テーブル635[[#This Row],[電気]],電気[],2,TRUE), IF(NOT(ISBLANK(テーブル635[[#This Row],[許可区分（電気）]])),\"D\",\"-\"))","v":"-"},{"$f":"IF(NOT(ISBLANK(テーブル635[[#This Row],[管]])),VLOOKUP(テーブル635[[#This Row],[管]],管[],2,TRUE), IF(NOT(ISBLANK(テーブル635[[#This Row],[許可区分（管）]])),\"D\",\"-\"))","v":"-"},{"$f":"IF(NOT(ISBLANK(テーブル635[[#This Row],[ほ装]])),VLOOKUP(テーブル635[[#This Row],[ほ装]],ほ装[],2,TRUE), IF(NOT(ISBLANK(テーブル635[[#This Row],[許可区分(ほ装)]])),\"D\",\"-\"))","v":"-"},{"$f":"IF(NOT(ISBLANK(テーブル635[[#This Row],[塗装]])),VLOOKUP(テーブル635[[#This Row],[塗装]],塗装[],2,TRUE), IF(NOT(ISBLANK(テーブル635[[#This Row],[許可区分（塗装）]])),\"D\",\"-\"))","v":"-"},{"$f":"IF(NOT(ISBLANK(テーブル635[[#This Row],[防水]])),VLOOKUP(テーブル635[[#This Row],[防水]],塗装[],2,TRUE), IF(NOT(ISBLANK(テーブル635[[#This Row],[許可区分（防水）]])),\"D\",\"-\"))","v":"-"},{"$f":"IF(NOT(ISBLANK(テーブル635[[#This Row],[機械器具設置]])),VLOOKUP(テーブル635[[#This Row],[機械器具設置]],塗装[],2,TRUE), IF(NOT(ISBLANK(テーブル635[[#This Row],[許可区分（機械器具）]])),\"D\",\"-\"))","v":"-"},{"$f":"IF(NOT(ISBLANK(テーブル635[[#This Row],[電気通信]])),VLOOKUP(テーブル635[[#This Row],[電気通信]],電気[],2,TRUE), IF(NOT(ISBLANK(テーブル635[[#This Row],[許可区分(電気)]])),\"D\",\"-\"))","v":"-"},{"$f":"IF(NOT(ISBLANK(テーブル635[[#This Row],[水道施設]])),VLOOKUP(テーブル635[[#This Row],[水道施設]],水道[],2,TRUE), IF(NOT(ISBLANK(テーブル635[[#This Row],[許可区分（水道施設）]])),\"D\",\"-\"))","v":"-"}]
[8,null,null,null,null,null,null,null,null,null,null,null,null,null,null,null,null,null,null,null,null,null,null,null,null,null,null,{"$f":"IF(NOT(ISBLANK(テーブル635[[#This Row],[土木一式]])),VLOOKUP(テーブル635[[#This Row],[土木一式]],土木[],2,TRUE), IF(NOT(ISBLANK(テーブル635[[#This Row],[許可区分(土木)]])),\"D\",\"-\"))","v":"-"},{"$f":"IF(NOT(ISBLANK(テーブル635[[#This Row],[建築一式]])),VLOOKUP(テーブル635[[#This Row],[建築一式]],建築[],2,TRUE), IF(NOT(ISBLANK(テーブル635[[#This Row],[許可区分（建築）]])),\"D\",\"-\"))","v":"-"},{"$f":"IF(NOT(ISBLANK(テーブル635[[#This Row],[電気]])),VLOOKUP(テーブル635[[#This Row],[電気]],電気[],2,TRUE), IF(NOT(ISBLANK(テーブル635[[#This Row],[許可区分（電気）]])),\"D\",\"-\"))","v":"-"},{"$f":"IF(NOT(ISBLANK(テーブル635[[#This Row],[管]])),VLOOKUP(テーブル635[[#This Row],[管]],管[],2,TRUE), IF(NOT(ISBLANK(テーブル635[[#This Row],[許可区分（管）]])),\"D\",\"-\"))","v":"-"},{"$f":"IF(NOT(ISBLANK(テーブル635[[#This Row],[ほ装]])),VLOOKUP(テーブル635[[#This Row],[ほ装]],ほ装[],2,TRUE), IF(NOT(ISBLANK(テーブル635[[#This Row],[許可区分(ほ装)]])),\"D\",\"-\"))","v":"-"},{"$f":"IF(NOT(ISBLANK(テーブル635[[#This Row],[塗装]])),VLOOKUP(テーブル635[[#This Row],[塗装]],塗装[],2,TRUE), IF(NOT(ISBLANK(テーブル635[[#This Row],[許可区分（塗装）]])),\"D\",\"-\"))","v":"-"},{"$f":"IF(NOT(ISBLANK(テーブル635[[#This Row],[防水]])),VLOOKUP(テーブル635[[#This Row],[防水]],塗装[],2,TRUE), IF(NOT(ISBLANK(テーブル635[[#This Row],[許可区分（防水）]])),\"D\",\"-\"))","v":"-"},{"$f":"IF(NOT(ISBLANK(テーブル635[[#This Row],[機械器具設置]])),VLOOKUP(テーブル635[[#This Row],[機械器具設置]],塗装[],2,TRUE), IF(NOT(ISBLANK(テーブル635[[#This Row],[許可区分（機械器具）]])),\"D\",\"-\"))","v":"-"},{"$f":"IF(NOT(ISBLANK(テーブル635[[#This Row],[電気通信]])),VLOOKUP(テーブル635[[#This Row],[電気通信]],電気[],2,TRUE), IF(NOT(ISBLANK(テーブル635[[#This Row],[許可区分(電気)]])),\"D\",\"-\"))","v":"-"},{"$f":"IF(NOT(ISBLANK(テーブル635[[#This Row],[水道施設]])),VLOOKUP(テーブル635[[#This Row],[水道施設]],水道[],2,TRUE), IF(NOT(ISBLANK(テーブル635[[#This Row],[許可区分（水道施設）]])),\"D\",\"-\"))","v":"-"}]
[9,null,null,null,null,null,null,null,null,null,null,null,null,null,null,null,null,null,null,null,null,null,null,null,null,null,null,{"$f":"IF(NOT(ISBLANK(テーブル635[[#This Row],[土木一式]])),VLOOKUP(テーブル635[[#This Row],[土木一式]],土木[],2,TRUE), IF(NOT(ISBLANK(テーブル635[[#This Row],[許可区分(土木)]])),\"D\",\"-\"))","v":"-"},{"$f":"IF(NOT(ISBLANK(テーブル635[[#This Row],[建築一式]])),VLOOKUP(テーブル635[[#This Row],[建築一式]],建築[],2,TRUE), IF(NOT(ISBLANK(テーブル635[[#This Row],[許可区分（建築）]])),\"D\",\"-\"))","v":"-"},{"$f":"IF(NOT(ISBLANK(テーブル635[[#This Row],[電気]])),VLOOKUP(テーブル635[[#This Row],[電気]],電気[],2,TRUE), IF(NOT(ISBLANK(テーブル635[[#This Row],[許可区分（電気）]])),\"D\",\"-\"))","v":"-"},{"$f":"IF(NOT(ISBLANK(テーブル635[[#This Row],[管]])),VLOOKUP(テーブル635[[#This Row],[管]],管[],2,TRUE), IF(NOT(ISBLANK(テーブル635[[#This Row],[許可区分（管）]])),\"D\",\"-\"))","v":"-"},{"$f":"IF(NOT(ISBLANK(テーブル635[[#This Row],[ほ装]])),VLOOKUP(テーブル635[[#This Row],[ほ装]],ほ装[],2,TRUE), IF(NOT(ISBLANK(テーブル635[[#This Row],[許可区分(ほ装)]])),\"D\",\"-\"))","v":"-"},{"$f":"IF(NOT(ISBLANK(テーブル635[[#This Row],[塗装]])),VLOOKUP(テーブル635[[#This Row],[塗装]],塗装[],2,TRUE), IF(NOT(ISBLANK(テーブル635[[#This Row],[許可区分（塗装）]])),\"D\",\"-\"))","v":"-"},{"$f":"IF(NOT(ISBLANK(テーブル635[[#This Row],[防水]])),VLOOKUP(テーブル635[[#This Row],[防水]],塗装[],2,TRUE), IF(NOT(ISBLANK(テーブル635[[#This Row],[許可区分（防水）]])),\"D\",\"-\"))","v":"-"},{"$f":"IF(NOT(ISBLANK(テーブル635[[#This Row],[機械器具設置]])),VLOOKUP(テーブル635[[#This Row],[機械器具設置]],塗装[],2,TRUE), IF(NOT(ISBLANK(テーブル635[[#This Row],[許可区分（機械器具）]])),\"D\",\"-\"))","v":"-"},{"$f":"IF(NOT(ISBLANK(テーブル635[[#This Row],[電気通信]])),VLOOKUP(テーブル635[[#This Row],[電気通信]],電気[],2,TRUE), IF(NOT(ISBLANK(テーブル635[[#This Row],[許可区分(電気)]])),\"D\",\"-\"))","v":"-"},{"$f":"IF(NOT(ISBLANK(テーブル635[[#This Row],[水道施設]])),VLOOKUP(テーブル635[[#This Row],[水道施設]],水道[],2,TRUE), IF(NOT(ISBLANK(テーブル635[[#This Row],[許可区分（水道施設）]])),\"D\",\"-\"))","v":"-"}]
[10,null,null,null,null,null,null,null,null,null,null,null,null,null,null,null,null,null,null,null,null,null,null,null,null,null,null,{"$f":"IF(NOT(ISBLANK(テーブル635[[#This Row],[土木一式]])),VLOOKUP(テーブル635[[#This Row],[土木一式]],土木[],2,TRUE), IF(NOT(ISBLANK(テーブル635[[#This Row],[許可区分(土木)]])),\"D\",\"-\"))","v":"-"},{"$f":"IF(NOT(ISBLANK(テーブル635[[#This Row],[建築一式]])),VLOOKUP(テーブル635[[#This Row],[建築一式]],建築[],2,TRUE), IF(NOT(ISBLANK(テーブル635[[#This Row],[許可区分（建築）]])),\"D\",\"-\"))","v":"-"},{"$f":"IF(NOT(ISBLANK(テーブル635[[#This Row],[電気]])),VLOOKUP(テーブル635[[#This Row],[電気]],電気[],2,TRUE), IF(NOT(ISBLANK(テーブル635[[#This Row],[許可区分（電気）]])),\"D\",\"-\"))","v":"-"},{"$f":"IF(NOT(ISBLANK(テーブル635[[#This Row],[管]])),VLOOKUP(テーブル635[[#This Row],[管]],管[],2,TRUE), IF(NOT(ISBLANK(テーブル635[[#This Row],[許可区分（管）]])),\"D\",\"-\"))","v":"-"},{"$f":"IF(NOT(ISBLANK(テーブル635[[#This Row],[ほ装]])),VLOOKUP(テーブル635[[#This Row],[ほ装]],ほ装[],2,TRUE), IF(NOT(ISBLANK(テーブル635[[#This Row],[許可区分(ほ装)]])),\"D\",\"-\"))","v":"-"},{"$f":"IF(NOT(ISBLANK(テーブル635[[#This Row],[塗装]])),VLOOKUP(テーブル635[[#This Row],[塗装]],塗装[],2,TRUE), IF(NOT(ISBLANK(テーブル635[[#This Row],[許可区分（塗装）]])),\"D\",\"-\"))","v":"-"},{"$f":"IF(NOT(ISBLANK(テーブル635[[#This Row],[防水]])),VLOOKUP(テーブル635[[#This Row],[防水]],塗装[],2,TRUE), IF(NOT(ISBLANK(テーブル635[[#This Row],[許可区分（防水）]])),\"D\",\"-\"))","v":"-"},{"$f":"IF(NOT(ISBLANK(テーブル635[[#This Row],[機械器具設置]])),VLOOKUP(テーブル635[[#This Row],[機械器具設置]],塗装[],2,TRUE), IF(NOT(ISBLANK(テーブル635[[#This Row],[許可区分（機械器具）]])),\"D\",\"-\"))","v":"-"},{"$f":"IF(NOT(ISBLANK(テーブル635[[#This Row],[電気通信]])),VLOOKUP(テーブル635[[#This Row],[電気通信]],電気[],2,TRUE), IF(NOT(ISBLANK(テーブル635[[#This Row],[許可区分(電気)]])),\"D\",\"-\"))","v":"-"},{"$f":"IF(NOT(ISBLANK(テーブル635[[#This Row],[水道施設]])),VLOOKUP(テーブル635[[#This Row],[水道施設]],水道[],2,TRUE), IF(NOT(ISBLANK(テーブル635[[#This Row],[許可区分（水道施設）]])),\"D\",\"-\"))","v":"-"}]

{"sheet":"等級(19-4月現在)","index":3,"n_rows":20,"n_cols":8,"rows_kept":20,"cut":false,"hidden":false,"merged":[]}
["列1","土木一式",null,"列1","建築一式",null,"列1","電気"]
[0,"-",null,0,"-",null,0,"-"]
[1,"D",null,1,"D",null,1,"D"]
[550,"C",null,600,"C",null,600,"C"]
[650,"B",null,700,"B",null,700,"B"]
[750,"A",null,800,"A",null,800,"A"]
[]
["列1","管",null,"列1","塗装",null,"列1","水道"]
[0,"-",null,0,"-",null,0,"-"]
[1,"D",null,1,"D",null,1,"D"]
[500,"C",null,600,"C",null,600,"C"]
[600,"B",null,700,"B",null,700,"B"]
[700,"A",null,800,"A",null,800,"A"]
[]
["列1","ほ装"]
[0,"-"]
[1,"D"]
[500,"C"]
[600,"B"]
[700,"A"]